Workbook

Sheet تفصيلي مرتب يوليو 2018
A1: كشف المرتبات التفصيلى (إستمارة 132) عن شهر يوليو عام 2018
A2: عمود1 | B2: الصورة الشخصية | C2: يوليو 2018 | D2: الرقم القومى | E2: أساسى المرتب فى ٣٠-٦ | F2: فروق تسوية الأجر المكمل | G2: حافز التميز ماجيستير | H2: حافز التميز دكتوراه | I2: فروق تسوية - علاوة الحد الأدنى | J2: أساسى التأمينات (أساسى ٣٠-٦ * ١.٠٩) | K2: الأجر الوظيفى | L2: العلاوة الدورية ٧ % | M2: علاوة غلاء المعيشة | N2: حافز التميز العلمى | O2: إجمالى الأجر الوظيفى | P2: علاوة الترقية | Q2: العلاوة التشجيعية | R2: بدل إقامة - غير خاضع للضريبة | S2: بدل نقدى - غير خاضع للمعاش | T2: بدل عدوى | U2: بدل محاماه | V2: بدل تفرغ تجاريين | W2: بدل تفرغ مهندسين | X2: الأجرالمكمل | Y2: الحافز التعويضى | Z2: إجمالى الأجر المكمل | AA2: إجمالى المتغير | AB2: إجمالى المتغير الخاضع | AC2: إصابة عمل ١.٠ %متغير | AD2: حصة الحكومة ١٥.٠ %متغير | AE2: حصة الحكومة فى التأمين ٣.٠ %متغير | AF2: إجمالى المستحق | AG2: اعتبارى | AH2: اعارة | AI2: صندوق التأمين الخاص للعاملين بالجامعة | AJ2: حساب سيارات | AK2: نادى العاملين بالجامعة | AL2: نقابة مستشفي جامعة أسيوط | AM2: صندوق الزمالة | AN2: نقابة العاملين | AO2: صندوق أسرة الجامعة | AP2: شركة فودافون | AQ2: الشركة العربية للمنسوجات | AR2: حساب سيارات المستشفى | AS2: جمعية رعاية العاملين | AT2: شركة مصر لتامينات الحياه | AU2: جمعية كفالة اليتيم | AV2: الجمعية النسائية | AW2: بنك القاهرة فرع أسيوط | AX2: شركة إتصالات | AY2: نقابة المهن التطبيقية | AZ2: شركة موبينيل | BA2: الجزاءات | BB2: إيرادات | BC2: الدمغة العادية | BD2: الضريبة الموحدة | BE2: إجمالى المستقطع | BF2: الصافى
A3: 1 | C3: ابو بكر جلال علي عبد الحافظ | D3: 28310092500254 | E3: 259 | J3: 365.6 | K3: 788.59 | L3: 55.2 | M3: 123.5 | O3: 967.29 | R3: 9.36 | S3: 140 | Y3: 2.22 | Z3: 151.58 | AA3: 1140.36 | AB3: 1140.36 | AC3: 11.4 | AD3: 171.05 | AE3: 34.21 | AF3: 1412.31 | AI3: 116.7 | BB3: 0.04 | BC3: 6.2 | BE3: 593.01 | BF3: 819.3
A4: 2 | C4: اسامة مصطفى محمد عبد الرحمن | D4: 28301132500091 | E4: 260 | F4: 219.37 | J4: 367.01 | K4: 1312.11 | L4: 91.85 | M4: 190 | O4: 1593.96 | R4: 14.4 | S4: 50 | Y4: 5.47 | Z4: 289.24 | AA4: 1466.19 | AB4: 1466.19 | AC4: 14.66 | AD4: 219.93 | AE4: 43.99 | AF4: 2238.85 | AG4: 5.26 | BC4: 12.05 | BD4: 5.83 | BE4: 591.45 | BF4: 1647.4
A5: 3 | C5: اسامه عبد النعيم عاصم محمد | D5: 27511172502659 | E5: 276 | J5: 389.6 | K5: 1306.41 | L5: 91.45 | M5: 190 | O5: 1587.86 | R5: 21 | S5: 140 | X5: 0.3 | Y5: 5.6 | Z5: 166.9 | AA5: 1225.16 | AB5: 1225.16 | AC5: 12.25 | AD5: 183.77 | AE5: 36.75 | AF5: 2069.35 | BC5: 11.25 | BD5: 4.24 | BE5: 519.4 | BF5: 1549.95
A6: 4 | C6: اسراء أسامة محمد طلبه | D6: 28606128800361 | E6: 266 | G6: 97 | J6: 375.48 | K6: 1273.81 | L6: 89.17 | M6: 190 | O6: 1552.98 | R6: 21 | S6: 50 | Y6: 5.54 | Z6: 173.54 | AA6: 1301.04 | AB6: 1301.04 | AC6: 13.01 | AD6: 195.16 | AE6: 39.03 | AF6: 2052.56 | AJ6: 70 | BB6: 0.02 | BC6: 10.45 | BD6: 2.68 | BE6: 604.86 | BF6: 1447.7
A7: 5 | C7: اسماء ابو زيد فؤاد ابو زيد | D7: 28312138800447 | E7: 268 | J7: 378.3 | K7: 1304.47 | L7: 91.31 | M7: 190 | O7: 1585.78 | R7: 21 | S7: 95 | T7: 19.2 | Y7: 5.68 | Z7: 140.88 | AA7: 1253.36 | AB7: 1253.36 | AC7: 12.53 | AD7: 188 | AE7: 37.6 | AF7: 2044.24 | AG7: 2.44 | AJ7: 70 | AK7: 1 | BB7: 0.02 | BC7: 10.45 | BD7: 2.72 | BE7: 595.04 | BF7: 1449.2
A8: 6 | C8: اسماء اسلام توفيق عبد المتجلى | D8: 28611162500168 | E8: 169.68 | J8: 239.51 | K8: 812.05 | L8: 56.84 | M8: 122.58 | O8: 991.47 | R8: 9.29 | Y8: 3.55 | Z8: 12.84 | AA8: 764.8 | AB8: 764.8 | AE8: 22.94 | AF8: 1199.93 | AK8: 1 | AL8: 2 | AM8: 2 | BB8: 0.04 | BC8: 5.8 | BE8: 324.13 | BF8: 875.8
A9: 7 | C9: الشيماء نور الدين مطاوع عبد الحافظ | D9: 28712162500142 | E9: 260 | F9: 221.37 | J9: 367.01 | K9: 1249.63 | L9: 87.47 | M9: 190 | O9: 1527.1 | R9: 14.4 | S9: 50 | Y9: 5.47 | Z9: 291.24 | AA9: 1401.33 | AB9: 1401.33 | AC9: 14.01 | AD9: 210.2 | AE9: 42.04 | AF9: 2161.66 | AK9: 1 | AN9: 2 | AO9: 1 | BB9: 0.02 | BC9: 11.65 | BD9: 5.05 | BE9: 569.56 | BF9: 1592.1
A10: 8 | C10: امل محمد عبد المجيد تمام | D10: 28510032502061 | E10: 263 | J10: 371.25 | K10: 1264.77 | L10: 88.53 | M10: 190 | O10: 1543.3 | R10: 21 | S10: 140 | Y10: 5.51 | Z10: 166.51 | AA10: 1198.56 | AB10: 1198.56 | AC10: 11.99 | AD10: 179.78 | AE10: 35.96 | AF10: 2015.5 | AP10: 37.45 | AQ10: 285 | BB10: 0.03 | BC10: 10.95 | BD10: 3.66 | BE10: 826.6 | BF10: 1188.9
A11: 9 | C11: اميرة إسماعيل تهامى إسماعيل | D11: 28806242500229 | E11: 260 | F11: 221.37 | J11: 367.01 | K11: 1249.63 | L11: 87.47 | M11: 190 | O11: 1527.1 | R11: 14.4 | S11: 50 | Y11: 5.47 | Z11: 291.24 | AA11: 1401.33 | AB11: 1401.33 | AC11: 14.01 | AD11: 210.2 | AE11: 42.04 | AF11: 2161.66 | AP11: 30 | BB11: 0.02 | BC11: 11.65 | BD11: 5.05 | BE11: 595.56 | BF11: 1566.1
A12: 10 | C12: اميرة محمد عبد المعطى محمد | D12: 28504252500204 | E12: 232.5 | F12: 184.45 | J12: 328.19 | K12: 1164.97 | L12: 81.55 | M12: 190 | O12: 1436.52 | R12: 14.4 | S12: 50 | Y12: 5.13 | Z12: 253.98 | AA12: 1312.31 | AB12: 1312.31 | AC12: 13.12 | AD12: 196.85 | AE12: 39.37 | AF12: 2008.76 | AJ12: 70 | AK12: 1 | AN12: 2 | AO12: 1 | BB12: 0.02 | BC12: 10.25 | BD12: 2.33 | BE12: 595.16 | BF12: 1413.6
A13: 11 | C13: اميره بدر توفيق حسن | D13: 28604152500066 | E13: 260 | J13: 367.01 | K13: 1249.63 | L13: 87.47 | M13: 190 | O13: 1527.1 | R13: 14.4 | S13: 140 | Y13: 5.47 | Z13: 159.87 | AA13: 1179.96 | AB13: 1179.96 | AC13: 11.8 | AD13: 176.99 | AE13: 35.4 | AF13: 1988.23 | AP13: 37.45 | BB13: 0.04 | BC13: 10.85 | BD13: 3.45 | BE13: 534.23 | BF13: 1454
A14: 12 | C14: اميره محمد حنفي يوسف | D14: 28109162500128 | E14: 274 | J14: 386.77 | K14: 1306.41 | L14: 91.45 | M14: 190 | O14: 1587.86 | R14: 21 | S14: 50 | Y14: 5.58 | Z14: 76.58 | AA14: 1227.67 | AB14: 1177.67 | AC14: 12.28 | AD14: 184.15 | AE14: 36.83 | AF14: 1978.93 | AG14: 3.04 | BB14: 0.01 | BC14: 10.55 | BD14: 2.94 | BE14: 520.23 | BF14: 1458.7
A15: 13 | C15: انعام احمد ابراهيم مهران | D15: 27108062500783 | E15: 452.58 | J15: 638.85 | K15: 1875.49 | L15: 131.28 | M15: 190 | O15: 2196.77 | R15: 21 | S15: 150 | X15: 230.78 | Y15: 70.06 | Z15: 471.84 | AA15: 1879.76 | AB15: 1879.76 | AC15: 18.8 | AD15: 281.96 | AE15: 56.39 | AF15: 3159.93 | AI15: 116.7 | AK15: 1 | AL15: 2 | AO15: 1 | AP15: 43.6 | AR15: 60 | BB15: 0.02 | BC15: 17.3 | BD15: 16.26 | BE15: 1045.43 | BF15: 2114.5
A16: 14 | C16: اوميمه جمال حلمى حسن | D16: 27412022500064 | E16: 283 | J16: 399.48 | K16: 1306.41 | L16: 91.45 | M16: 190 | O16: 1587.86 | R16: 21 | S16: 145 | X16: 21.74 | Y16: 5.69 | Z16: 193.43 | AA16: 1236.81 | AB16: 1236.81 | AC16: 12.37 | AD16: 185.52 | AE16: 37.1 | AF16: 2100.16 | AI16: 186.7 | AP16: 47 | BB16: 0.02 | BC16: 11.4 | BD16: 4.6 | BE16: 760.56 | BF16: 1339.6
A17: 15 | C17: ايفيلين ربيل بطرس اسكاروس | D17: 27811202502229 | E17: 271 | F17: 235.17 | J17: 382.54 | K17: 1314.07 | L17: 91.98 | M17: 190 | O17: 1596.05 | R17: 21 | S17: 95 | X17: 0.17 | Y17: 5.71 | Z17: 357.05 | AA17: 1475.56 | AB17: 1475.56 | AC17: 14.76 | AD17: 221.33 | AE17: 44.27 | AF17: 2313.8 | AG17: 14.28 | AJ17: 70 | BB17: 0.04 | BC17: 11.9 | BD17: 5.55 | BE17: 678.35 | BF17: 1635.45
A18: 16 | C18: ايمان عبدالحميد عبد اللطيف | D18: 28009172501861 | E18: 278 | J18: 392.42 | K18: 1371.73 | L18: 96.02 | M18: 190 | O18: 1657.75 | R18: 21 | S18: 50 | X18: 2.69 | Y18: 5.63 | Z18: 79.32 | AA18: 1294.65 | AB18: 1294.65 | AC18: 12.95 | AD18: 194.2 | AE18: 38.84 | AF18: 2065.46 | AJ18: 80 | AP18: 53.3 | BC18: 10.45 | BD18: 2.67 | BE18: 672.16 | BF18: 1393.3
A19: 17 | C19: ايمان محمد عبد المعطي محمد | D19: 28401292500181 | E19: 264 | J19: 372.66 | K19: 1299.1 | L19: 90.94 | M19: 190 | O19: 1580.04 | R19: 21 | S19: 145 | Y19: 5.69 | Z19: 171.69 | AA19: 1234.07 | AB19: 1234.07 | AC19: 12.34 | AD19: 185.11 | AE19: 37.02 | AF19: 2064.46 | AJ19: 70 | AK19: 1 | AN19: 2 | AO19: 1 | BB19: 0.02 | BC19: 10.7 | BD19: 3.18 | BE19: 588.56 | BF19: 1475.9
A20: 18 | C20: بسمة عبد العزيز ابو العلا | D20: 28302182500226 | E20: 274 | J20: 386.77 | K20: 1306.41 | L20: 91.45 | M20: 190 | O20: 1587.86 | R20: 21 | S20: 50 | Y20: 5.64 | Z20: 76.64 | AA20: 1227.73 | AB20: 1227.73 | AC20: 12.28 | AD20: 184.16 | AE20: 36.83 | AF20: 1979 | BC20: 10.55 | BD20: 2.9 | BE20: 517.15 | BF20: 1461.85
A21: 19 | C21: بيتر عاطف كمال متري | D21: 28009152500311 | E21: 270 | J21: 381.13 | K21: 1284.06 | L21: 89.88 | M21: 190 | O21: 1563.94 | R21: 21 | S21: 145 | X21: 0.9 | Y21: 5.53 | Z21: 172.43 | AA21: 1210.24 | AB21: 1210.24 | AC21: 12.1 | AD21: 181.54 | AE21: 36.31 | AF21: 2046.35 | AH21: 6.48 | BB21: 0.01 | BC21: 11.05 | BD21: 3.91 | BE21: 517.9 | BF21: 1528.45
A22: 20 | C22: جرجس فيليب عزيز نخله | D22: 28511172500374 | E22: 263 | J22: 371.25 | K22: 1264.77 | L22: 88.53 | M22: 190 | O22: 1543.3 | R22: 21 | S22: 50 | Y22: 5.51 | Z22: 76.51 | AA22: 1198.56 | AB22: 1198.56 | AC22: 11.99 | AD22: 179.78 | AE22: 35.96 | AF22: 1925.5 | AN22: 2 | AS22: 3 | BB22: 0.02 | BC22: 10.25 | BD22: 2.32 | BE22: 507.1 | BF22: 1418.4
A23: 21 | C23: حسام جمال الدين محمد محمود | D23: 28710202500351 | E23: 263 | F23: 223.18 | J23: 371.25 | K23: 1321.61 | L23: 92.51 | M23: 190 | O23: 1604.12 | R23: 14.4 | S23: 100 | Y23: 5.51 | Z23: 343.09 | AA23: 1475.96 | AB23: 1475.96 | AC23: 14.76 | AD23: 221.39 | AE23: 44.28 | AF23: 2305.6 | AK23: 1 | BC23: 12.55 | BD23: 6.83 | BE23: 593.1 | BF23: 1712.5
A24: 22 | C24: حنان فاروق محمد طلبه | D24: 28102032500229 | E24: 278 | J24: 392.42 | K24: 1371.73 | L24: 96.02 | M24: 190 | O24: 1657.75 | R24: 21 | S24: 50 | X24: 4.69 | Y24: 5.63 | Z24: 81.32 | AA24: 1296.65 | AB24: 1296.65 | AC24: 12.97 | AD24: 194.5 | AE24: 38.9 | AF24: 2067.84 | BB24: 0.01 | BC24: 11.05 | BD24: 3.89 | BE24: 541.29 | BF24: 1526.55
A25: 23 | C25: حنان محمود محمد أحمد | D25: 29208022500243 | E25: 246 | J25: 347.25 | K25: 1074.4 | L25: 75.21 | M25: 190 | O25: 1339.61 | R25: 14.4 | S25: 50 | Y25: 5.08 | Z25: 69.48 | AA25: 1011.84 | AB25: 1011.84 | AC25: 10.12 | AD25: 151.78 | AE25: 30.36 | AF25: 1674.27 | BB25: 0.03 | BC25: 8.9 | BE25: 434.02 | BF25: 1240.25
A26: 24 | C26: خالد فتحي عبد العزيز اسماعيل | D26: 28606212500276 | E26: 263 | J26: 371.25 | K26: 1321.61 | L26: 92.51 | M26: 190 | O26: 1604.12 | R26: 14.4 | S26: 50 | Y26: 5.51 | Z26: 69.91 | AA26: 1252.78 | AB26: 1252.78 | AC26: 12.53 | AD26: 187.92 | AE26: 37.58 | AF26: 1990.02 | BB26: 0.02 | BC26: 10.65 | BD26: 3.13 | BE26: 519.57 | BF26: 1470.45
A27: 25 | C27: داليا محي عبد العليم عبد الحافظ | D27: 28211082500321 | E27: 252 | J27: 355.72 | K27: 1089.04 | L27: 76.23 | M27: 190 | O27: 1355.27 | R27: 14.4 | Y27: 5.1 | Z27: 19.5 | AA27: 1019.05 | AB27: 1019.05 | AC27: 10.19 | AD27: 152.86 | AE27: 30.57 | AF27: 1643.09 | AI27: 46.7 | AR27: 50 | BB27: 0.02 | BC27: 8.65 | BE27: 535.59 | BF27: 1107.5
A28: 26 | C28: دعاء احمد جمال عبدالفتاح حسن | D28: 27808192500183 | E28: 278 | J28: 392.42 | K28: 1312.5 | L28: 91.87 | M28: 190 | O28: 1594.37 | R28: 21 | S28: 50 | X28: 5.39 | Y28: 5.63 | Z28: 82.02 | AA28: 1233.97 | AB28: 1233.97 | AC28: 12.34 | AD28: 185.1 | AE28: 37.02 | AF28: 1993.25 | AI28: 116.7 | AK28: 1 | BB28: 0.01 | BC28: 10.65 | BD28: 3.06 | BE28: 638.95 | BF28: 1354.3
A29: 27 | C29: دعاء محمد عباس عامر | D29: 28110182500181 | E29: 263 | F29: 223.18 | J29: 371.25 | K29: 1321.61 | L29: 92.51 | M29: 190 | O29: 1604.12 | R29: 14.4 | S29: 50 | Y29: 5.51 | Z29: 293.09 | AA29: 1475.96 | AB29: 1475.96 | AC29: 14.76 | AD29: 221.39 | AE29: 44.28 | AF29: 2255.6 | AP29: 37.45 | BB29: 0.04 | BC29: 12.15 | BD29: 6.09 | BE29: 628.45 | BF29: 1627.15
A30: 28 | C30: دينا حسين اسماعيل احمد | D30: 28209102500301 | E30: 267 | G30: 63.05 | J30: 376.89 | K30: 832.6 | L30: 58.28 | M30: 123.5 | O30: 1014.38 | R30: 13.65 | S30: 95 | Y30: 2.32 | Z30: 174.02 | AA30: 1271.31 | AB30: 1271.31 | AC30: 12.71 | AD30: 190.7 | AE30: 38.14 | AF30: 1509.1 | BB30: 0.04 | BC30: 6.55 | BE30: 519.9 | BF30: 989.2
A31: 29 | C31: دينا مصطفى سيد محمد البهنساوى | D31: 28412312500207 | E31: 270 | J31: 381.13 | K31: 1284.06 | L31: 89.88 | M31: 190 | O31: 1563.94 | R31: 21 | S31: 95 | Y31: 5.53 | Z31: 121.53 | AA31: 1209.34 | AB31: 1209.34 | AC31: 12.09 | AD31: 181.4 | AE31: 36.28 | AF31: 1995.27 | BC31: 10.75 | BD31: 3.25 | BE31: 510.17 | BF31: 1485.1
A32: 30 | C32: رانيا محمود نشأت عباس محمد | D32: 28110092500107 | E32: 263 | F32: 225.18 | J32: 371.25 | K32: 1321.61 | L32: 92.51 | M32: 190 | O32: 1604.12 | R32: 14.4 | S32: 50 | U32: 14.4 | Y32: 5.51 | Z32: 309.49 | AA32: 1492.36 | AB32: 1492.36 | AC32: 14.92 | AD32: 223.85 | AE32: 44.77 | AF32: 2275.11 | AG32: 7.54 | AJ32: 70 | BB32: 0.04 | BC32: 11.7 | BD32: 5.15 | BE32: 672.06 | BF32: 1603.05
A33: 31 | C33: رشا رفعت عبد العزيز عبد الرحيم | D33: 28303132500264 | E33: 260 | J33: 367.01 | K33: 1249.63 | L33: 87.47 | M33: 190 | O33: 1527.1 | R33: 14.4 | S33: 50 | Y33: 5.47 | Z33: 69.87 | AA33: 1179.96 | AB33: 1179.96 | AC33: 11.8 | AD33: 176.99 | AE33: 35.4 | AF33: 1898.23 | AJ33: 70 | BB33: 0.02 | BC33: 9.65 | BD33: 1.07 | BE33: 563.18 | BF33: 1335.05
A34: 32 | C34: رشا طلعت صادق مقار | D34: 28309012505066 | E34: 264 | F34: 226.45 | J34: 372.66 | K34: 1323.96 | L34: 92.68 | M34: 190 | O34: 1606.64 | R34: 14.4 | S34: 145 | Y34: 5.52 | Z34: 391.37 | AA34: 1480.35 | AB34: 1480.35 | AC34: 14.8 | AD34: 222.05 | AE34: 44.41 | AF34: 2357.53 | AG34: 9.06 | AJ34: 70 | BB34: 0.04 | BC34: 12.3 | BD34: 6.4 | BE34: 672.33 | BF34: 1685.2
A35: 33 | C35: رشا محمد محمد احمد مصطفى | D35: 28208012502643 | E35: 260 | F35: 241.37 | J35: 367.01 | K35: 1249.63 | L35: 87.47 | M35: 190 | O35: 1527.1 | R35: 14.4 | S35: 150 | Y35: 5.47 | Z35: 411.24 | AA35: 1421.33 | AB35: 1421.33 | AC35: 14.21 | AD35: 213.2 | AE35: 42.64 | AF35: 2285.46 | AG35: 17.44 | AI35: 223.9 | BB35: 0.04 | BC35: 12.4 | BD35: 6.54 | BE35: 815.16 | BF35: 1470.3
A36: 34 | C36: زينب شعبان عجمى يوسف | D36: 26804232500107 | E36: 462.98 | J36: 653.53 | K36: 1853.47 | L36: 129.74 | M36: 190 | O36: 2173.21 | R36: 28.5 | S36: 150 | X36: 284.01 | Y36: 71.38 | Z36: 533.89 | AA36: 1903.57 | AB36: 1903.57 | AC36: 19.04 | AD36: 285.54 | AE36: 57.11 | AF36: 3206.04 | AI36: 344.45 | AP36: 124.65 | AR36: 60 | AT36: 33.27 | BB36: 0.03 | BC36: 17.5 | BD36: 16.65 | BE36: 1396.39 | BF36: 1809.65
A37: 35 | C37: شيماء حسن زكى حسين | D37: 28008042500107 | E37: 263 | F37: 223.18 | J37: 371.25 | K37: 1321.61 | L37: 92.51 | M37: 190 | O37: 1604.12 | R37: 14.4 | S37: 50 | Y37: 5.51 | Z37: 293.09 | AA37: 1475.96 | AB37: 1475.96 | AC37: 14.76 | AD37: 221.39 | AE37: 44.28 | AF37: 2255.6 | AG37: 10.69 | AI37: 258.35 | AP37: 37.45 | AR37: 60 | AU37: 10 | BB37: 0.01 | BC37: 12.1 | BD37: 5.93 | BE37: 967.25 | BF37: 1288.35
A38: 36 | C38: شيماء سيد علي حسن | D38: 28308012503041 | E38: 270 | J38: 381.13 | K38: 1284.06 | L38: 89.88 | M38: 190 | O38: 1563.94 | R38: 21 | S38: 50 | Y38: 5.53 | Z38: 76.53 | AA38: 1209.34 | AB38: 1209.34 | AC38: 12.09 | AD38: 181.4 | AE38: 36.28 | AF38: 1950.27 | AI38: 116.7 | AJ38: 70 | AV38: 381.55 | BB38: 0.01 | BC38: 9.85 | BD38: 1.54 | BE38: 1075.82 | BF38: 874.45
A39: 37 | C39: شيماء فواز عبد الرحمن مهران | D39: 28402062500227 | E39: 271 | J39: 382.54 | K39: 1306.41 | L39: 91.45 | M39: 190 | O39: 1587.86 | R39: 21 | S39: 140 | Y39: 5.71 | Z39: 166.71 | AA39: 1232.03 | AB39: 1232.03 | AC39: 12.32 | AD39: 184.8 | AE39: 36.96 | AF39: 2068.99 | AJ39: 70 | BB39: 0.04 | BC39: 10.7 | BD39: 3.2 | BE39: 587.44 | BF39: 1481.55
A40: 38 | C40: شيماء محسن محمد فرغلى | D40: 28311190104789 | E40: 246 | J40: 347.25 | K40: 1019 | L40: 71.33 | M40: 190 | O40: 1280.33 | R40: 14.4 | S40: 145 | Z40: 159.4 | AA40: 947.48 | AB40: 947.48 | AC40: 9.47 | AD40: 142.12 | AE40: 28.42 | AF40: 1692.66 | BB40: 0.01 | BC40: 9.2 | BD40: 0.19 | BE40: 415.16 | BF40: 1277.5
A41: 39 | C41: تهامي أنور تهامى محمد | D41: 29005272502634 | E41: 250 | J41: 352.9 | K41: 1187.86 | L41: 83.15 | M41: 190 | O41: 1461.01 | R41: 14.4 | S41: 50 | Y41: 5.24 | Z41: 69.64 | AA41: 1127.75 | AB41: 1127.75 | AC41: 11.28 | AD41: 169.16 | AE41: 33.83 | AF41: 1819.03 | BB41: 0.04 | BC41: 9.7 | BD41: 1.24 | BE41: 472.83 | BF41: 1346.2
A42: 40 | C42: عبد الحميد حسنين محمد حسنين | D42: 27706242500131 | E42: 258 | J42: 364.19 | K42: 1185.14 | L42: 82.96 | M42: 190 | O42: 1458.1 | R42: 14.4 | S42: 145 | Y42: 5.11 | Z42: 164.51 | AA42: 1113.42 | AB42: 1113.42 | AC42: 11.13 | AD42: 167.01 | AE42: 33.4 | AF42: 1910.63 | BB42: 0.04 | BC42: 10.4 | BD42: 2.61 | BE42: 474.53 | BF42: 1436.1
A43: 41 | C43: عبير فاروق مصطفي إسماعيل | D43: 28410222500183 | E43: 263 | J43: 371.25 | K43: 1269.65 | L43: 88.88 | M43: 190 | O43: 1548.53 | R43: 21 | S43: 95 | Y43: 5.51 | Z43: 121.51 | AA43: 1203.79 | AB43: 1203.79 | AC43: 12.04 | AD43: 180.57 | AE43: 36.11 | AF43: 1976.72 | AK43: 1 | AN43: 2 | BB43: 0.04 | BC43: 10.65 | BD43: 3.06 | BE43: 507.82 | BF43: 1468.9
A44: 42 | C44: عبير نصير كامل محمد | D44: 28607031900244 | E44: 257 | J44: 362.78 | K44: 1240.61 | L44: 86.84 | M44: 190 | O44: 1517.45 | R44: 14.4 | S44: 140 | Y44: 5.43 | Z44: 159.83 | AA44: 1174.5 | AB44: 1174.5 | AC44: 11.75 | AD44: 176.17 | AE44: 35.23 | AF44: 1976.62 | BB44: 0.01 | BC44: 10.75 | BD44: 3.33 | BE44: 493.42 | BF44: 1483.2
A45: 43 | C45: عثمان محمد عبده محمد | D45: 26712062501837 | E45: 257 | F45: 221.56 | J45: 362.78 | K45: 1240.61 | L45: 86.84 | M45: 190 | O45: 1517.45 | R45: 14.4 | S45: 145 | U45: 14.4 | Y45: 5.43 | Z45: 400.79 | AA45: 1410.46 | AB45: 1410.46 | AC45: 14.1 | AD45: 211.57 | AE45: 42.31 | AF45: 2262.41 | AG45: 34.03 | BC45: 12.1 | BD45: 6.02 | BE45: 602.26 | BF45: 1660.15
A46: 44 | C46: عزة سيد تمام مصطفى | D46: 28707062500061 | E46: 254 | J46: 358.54 | K46: 1231.58 | L46: 86.21 | M46: 190 | O46: 1507.79 | R46: 14.4 | S46: 50 | Y46: 5.45 | Z46: 69.85 | AA46: 1169.1 | AB46: 1169.1 | AC46: 11.69 | AD46: 175.36 | AE46: 35.07 | AF46: 1875.06 | BB46: 0.03 | BC46: 10.05 | BD46: 1.86 | BE46: 488.16 | BF46: 1386.9
A47: 45 | C47: عزت سيد حسن محمد | D47: 26106032500111 | E47: 288 | J47: 406.54 | K47: 1306.41 | L47: 91.45 | M47: 190 | O47: 1587.86 | R47: 21 | S47: 150 | X47: 65.68 | Y47: 5.98 | Z47: 242.66 | AA47: 1273.98 | AB47: 1273.98 | AC47: 12.74 | AD47: 191.1 | AE47: 38.22 | AF47: 2157.96 | AI47: 93.35 | AK47: 1 | AN47: 2 | AO47: 1 | AW47: 345.15 | BC47: 11.75 | BD47: 5.26 | BE47: 984.01 | BF47: 1173.95
A48: 46 | C48: عزه عبد الحميد زكى محمد | D48: 27203062500221 | E48: 274 | J48: 386.77 | K48: 1371.73 | L48: 96.02 | M48: 190 | O48: 1657.75 | R48: 21 | S48: 50 | Y48: 5.64 | Z48: 76.64 | AA48: 1297.62 | AB48: 1297.62 | AC48: 12.98 | AD48: 194.64 | AE48: 38.93 | AF48: 2062.17 | AG48: 49.96 | AJ48: 70 | BC48: 10.1 | BD48: 2.04 | BE48: 656.77 | BF48: 1405.4
A49: 47 | C49: علاء رمضان توفيق على | D49: 28505012500157 | E49: 278 | J49: 392.42 | K49: 1312.5 | L49: 91.87 | M49: 190 | O49: 1594.37 | R49: 21 | S49: 95 | X49: 7.39 | Y49: 5.63 | Z49: 129.02 | AA49: 1235.97 | AB49: 1235.97 | AC49: 12.36 | AD49: 185.4 | AE49: 37.08 | AF49: 2040.63 | BC49: 11 | BD49: 3.75 | BE49: 522.88 | BF49: 1517.75
A50: 48 | C50: عمر اسماعيل عمر اسماعيل | D50: 28206262500473 | E50: 274 | J50: 386.77 | K50: 1306.41 | L50: 91.45 | M50: 190 | O50: 1587.86 | R50: 21 | S50: 95 | U50: 21 | Y50: 5.58 | Z50: 142.58 | AA50: 1248.67 | AB50: 1248.67 | AC50: 12.49 | AD50: 187.3 | AE50: 37.46 | AF50: 2048.92 | AI50: 56.25 | BB50: 0.03 | BC50: 11.05 | BD50: 3.85 | BE50: 581.17 | BF50: 1467.75
A51: 49 | C51: عمر عبد الرحمن دوينى عبدالرحمن | D51: 28307182502212 | E51: 260 | F51: 221.37 | J51: 367.01 | K51: 1249.63 | L51: 87.47 | M51: 190 | O51: 1527.1 | R51: 14.4 | S51: 50 | Y51: 5.47 | Z51: 291.24 | AA51: 1401.33 | AB51: 1401.33 | AC51: 14.01 | AD51: 210.2 | AE51: 42.04 | AF51: 2161.66 | AG51: 16 | AI51: 116.7 | BB51: 0.01 | BC51: 11.5 | BD51: 4.81 | BE51: 697.86 | BF51: 1463.8
A52: 50 | C52: عمر محى عبد العليم عبد الحافظ | D52: 28507012500494 | E52: 257 | F52: 217.56 | G52: 97 | J52: 362.78 | K52: 1240.61 | L52: 86.84 | M52: 190 | O52: 1517.45 | R52: 14.4 | S52: 100 | U52: 14.4 | Y52: 5.43 | Z52: 448.79 | AA52: 1503.46 | AB52: 1503.46 | AC52: 15.03 | AD52: 225.52 | AE52: 45.1 | AF52: 2328.08 | BB52: 0.03 | BC52: 12.65 | BD52: 7.09 | BE52: 597.78 | BF52: 1730.3
A53: 51 | C53: عمرو حامد حسن محمد | D53: 28112020101791 | E53: 255 | F53: 215.21 | G53: 58.2 | J53: 359.95 | K53: 765.1 | L53: 53.56 | M53: 123.5 | O53: 942.16 | R53: 9.36 | S53: 150 | U53: 9.36 | Y53: 3.44 | Z53: 445.57 | AA53: 1544.25 | AB53: 1544.25 | AC53: 15.44 | AD53: 231.64 | AE53: 46.33 | AF53: 1756.73 | BB53: 0.01 | BC53: 8.35 | BE53: 597.63 | BF53: 1159.1
A54: 52 | C54: عمرو محمد محمد عبد المجيد | D54: 27912222500339 | E54: 284 | G54: 97 | H54: 200 | J54: 400.89 | K54: 1306.41 | L54: 91.45 | M54: 190 | O54: 1587.86 | R54: 21 | S54: 145 | X54: 29.66 | Y54: 5.7 | Z54: 498.36 | AA54: 1540.33 | AB54: 1540.33 | AC54: 15.4 | AD54: 231.05 | AE54: 46.21 | AF54: 2463.07 | AK54: 1 | AN54: 2 | AO54: 1 | AP54: 43.6 | BB54: 0.02 | BC54: 13.45 | BD54: 8.64 | BE54: 672.12 | BF54: 1790.95
A55: 53 | C55: غادة أحمد سيد عبد العال | D55: 27909242500041 | E55: 270 | J55: 381.13 | K55: 1284.06 | L55: 89.88 | M55: 190 | O55: 1563.94 | R55: 21 | S55: 145 | Y55: 5.53 | Z55: 171.53 | AA55: 1209.34 | AB55: 1209.34 | AC55: 12.09 | AD55: 181.4 | AE55: 36.28 | AF55: 2045.27 | AJ55: 70 | AP55: 67.5 | AV55: 240.66 | BB55: 0.03 | BC55: 10.6 | BD55: 2.96 | BE55: 887.92 | BF55: 1157.35
A56: 54 | C56: فاطمة أحمد فواز خلف الله عثمان علي | D56: 28004262500242 | E56: 274 | J56: 386.77 | K56: 1371.73 | L56: 96.02 | M56: 190 | O56: 1657.75 | R56: 21 | S56: 100 | V56: 11 | Y56: 5.58 | Z56: 137.58 | AA56: 1308.56 | AB56: 1308.56 | AC56: 13.09 | AD56: 196.28 | AE56: 39.26 | AF56: 2125.19 | AG56: 5.19 | AI56: 186.7 | AJ56: 70 | AK56: 1 | AP56: 43.6 | AU56: 20 | BB56: 0.04 | BC56: 10.9 | BD56: 3.6 | BE56: 868.99 | BF56: 1256.2
A57: 55 | C57: فاطمه حسانين احمد محمد | D57: 28603178800223 | E57: 266 | F57: 228.99 | J57: 375.48 | K57: 1278.69 | L57: 89.51 | M57: 190 | O57: 1558.2 | R57: 21 | S57: 50 | Y57: 5.54 | Z57: 305.53 | AA57: 1438.25 | AB57: 1438.25 | AC57: 14.38 | AD57: 215.74 | AE57: 43.15 | AF57: 2215.84 | AR57: 50 | BB57: 0.01 | BC57: 11.9 | BD57: 5.55 | BE57: 630.34 | BF57: 1585.5
A58: 56 | C58: ليلى محمد فرحان أحمد | D58: 28612082503685 | E58: 260 | F58: 163.9 | J58: 367.01 | K58: 1249.63 | L58: 87.47 | M58: 190 | O58: 1527.1 | R58: 14.4 | S58: 50 | T58: 19.2 | Y58: 5.47 | Z58: 252.97 | AA58: 1363.06 | AB58: 1363.06 | AC58: 13.63 | AD58: 204.46 | AE58: 40.89 | AF58: 2116.12 | AK58: 1 | BB58: 0.01 | BC58: 11.4 | BD58: 4.54 | BE58: 554.32 | BF58: 1561.8
A59: 57 | C59: محمد أحمد رضى محمود محمد عبد المنعم | D59: 28508292500032 | E59: 252 | F59: 209.09 | J59: 355.72 | K59: 1169.01 | L59: 81.83 | M59: 190 | O59: 1440.84 | R59: 14.4 | S59: 50 | U59: 14.4 | Y59: 5.1 | Z59: 292.99 | AA59: 1328.11 | AB59: 1328.11 | AC59: 13.28 | AD59: 199.22 | AE59: 39.84 | AF59: 2060.87 | AX59: 38.5 | BB59: 0.01 | BC59: 11.05 | BD59: 3.93 | BE59: 576.42 | BF59: 1484.45
A60: 58 | C60: محمد احمد عبد العال عبد السلام | D60: 28109172500291 | E60: 260 | F60: 219.37 | J60: 367.01 | K60: 1249.63 | L60: 87.47 | M60: 190 | O60: 1527.1 | R60: 14.4 | S60: 50 | Y60: 5.47 | Z60: 289.24 | AA60: 1399.33 | AB60: 1399.33 | AC60: 13.99 | AD60: 209.9 | AE60: 41.98 | AF60: 2159.28 | BB60: 0.02 | BC60: 11.6 | BD60: 5.02 | BE60: 564.88 | BF60: 1594.4
A61: 59 | C61: محمد حسنى نفادى أحمد | D61: 28801012517392 | E61: 254 | F61: 213.75 | J61: 358.54 | K61: 1231.58 | L61: 86.21 | M61: 190 | O61: 1507.79 | R61: 14.4 | S61: 100 | Y61: 5.45 | Z61: 333.6 | AA61: 1382.85 | AB61: 1382.85 | AC61: 13.83 | AD61: 207.43 | AE61: 41.49 | AF61: 2179.44 | BB61: 0.04 | BC61: 11.85 | BD61: 5.44 | BE61: 557.69 | BF61: 1621.75
A62: 60 | C62: محمد فتحي محمود فرج | D62: 28301222500171 | E62: 260 | F62: 223.37 | J62: 367.01 | K62: 1312.11 | L62: 91.85 | M62: 190 | O62: 1593.96 | R62: 14.4 | S62: 50 | Y62: 5.47 | Z62: 293.24 | AA62: 1470.19 | AB62: 1470.19 | AC62: 14.7 | AD62: 220.53 | AE62: 44.11 | AF62: 2243.61 | AG62: 5.11 | AI62: 116.7 | AK62: 1 | AN62: 2 | AO62: 1 | AP62: 60 | BB62: 0.01 | BC62: 12.05 | BD62: 5.88 | BE62: 773.26 | BF62: 1470.35
A63: 61 | C63: محمد كمال الدين عبد العال مرسى | D63: 28309102500411 | E63: 255 | F63: 203.59 | J63: 359.95 | K63: 1177.08 | L63: 82.4 | M63: 190 | O63: 1449.48 | R63: 14.4 | S63: 145 | Y63: 5.14 | Z63: 368.13 | AA63: 1312.66 | AB63: 1312.66 | AC63: 13.13 | AD63: 196.9 | AE63: 39.38 | AF63: 2142.61 | BB63: 0.01 | BC63: 11.7 | BD63: 5.2 | BE63: 536.71 | BF63: 1605.9
A64: 62 | C64: محمد محمود محمد قاسم | D64: 28409242500254 | E64: 260 | J64: 367.01 | K64: 1249.63 | L64: 87.47 | M64: 190 | O64: 1527.1 | R64: 14.4 | S64: 50 | Y64: 5.47 | Z64: 69.87 | AA64: 1179.96 | AB64: 1179.96 | AC64: 11.8 | AD64: 176.99 | AE64: 35.4 | AF64: 1898.23 | BB64: 0.03 | BC64: 10.15 | BD64: 2.11 | BE64: 494.73 | BF64: 1403.5
A65: 63 | C65: محمود سيد توفيق سيد | D65: 28604012504878 | E65: 260 | I65: 225.37 | J65: 367.01 | K65: 1249.63 | L65: 87.47 | M65: 190 | O65: 1527.1 | R65: 14.4 | S65: 145 | Y65: 5.47 | Z65: 390.24 | AA65: 1405.33 | AB65: 1405.33 | AC65: 14.05 | AD65: 210.8 | AE65: 42.16 | AF65: 2261.42 | AI65: 128.35 | BB65: 0.02 | BC65: 12.35 | BD65: 6.51 | BE65: 697.27 | BF65: 1564.15
A66: 64 | C66: محمود محمد عبد العال احمد | D66: 28602042500319 | E66: 256 | J66: 361.36 | K66: 1204.77 | L66: 84.33 | M66: 190 | O66: 1479.1 | R66: 14.4 | S66: 50 | Y66: 5.26 | Z66: 69.66 | AA66: 1137.4 | AB66: 1137.4 | AC66: 11.37 | AD66: 170.61 | AE66: 34.12 | AF66: 1840.74 | BB66: 0.03 | BC66: 9.85 | BD66: 1.48 | BE66: 479.04 | BF66: 1361.7
A67: 65 | C67: مرفت فؤاد حنين أرمانيوس | D67: 27804112500107 | E67: 419.47 | J67: 592.12 | K67: 1778.17 | L67: 124.47 | M67: 190 | O67: 2092.64 | R67: 21 | S67: 50 | X67: 188.74 | Y67: 56.73 | Z67: 316.47 | AA67: 1766.99 | AB67: 1766.99 | AC67: 17.67 | AD67: 265.05 | AE67: 53.01 | AF67: 2869.18 | AR67: 50 | AY67: 3 | AZ67: 27.46 | BB67: 0.02 | BC67: 15.5 | BD67: 12.67 | BE67: 845.98 | BF67: 2023.2
A68: 66 | C68: مروة مجدى عبد الحافظ سيد | D68: 28607162500063 | E68: 260 | J68: 367.01 | K68: 1249.63 | L68: 87.47 | M68: 190 | O68: 1527.1 | R68: 14.4 | S68: 50 | Y68: 5.47 | Z68: 69.87 | AA68: 1179.96 | AB68: 1179.96 | AC68: 11.8 | AD68: 176.99 | AE68: 35.4 | AF68: 1898.23 | AJ68: 70 | BB68: 0.02 | BC68: 9.65 | BD68: 1.07 | BE68: 563.18 | BF68: 1335.05
A69: 67 | C69: مروة محمد على محمد | D69: 28501142500382 | E69: 260 | J69: 367.01 | K69: 1249.63 | L69: 87.47 | M69: 190 | O69: 1527.1 | R69: 14.4 | S69: 50 | Y69: 5.47 | Z69: 69.87 | AA69: 1179.96 | AB69: 1179.96 | AC69: 11.8 | AD69: 176.99 | AE69: 35.4 | AF69: 1898.23 | AI69: 56.25 | AJ69: 70 | BB69: 0.02 | BC69: 9.65 | BD69: 1.07 | BE69: 619.43 | BF69: 1278.8
A70: 68 | C70: مصطفى صلاح الدين سيد عبد الرحمن | D70: 28201032504214 | E70: 274 | J70: 386.77 | K70: 1371.73 | L70: 96.02 | M70: 190 | O70: 1657.75 | R70: 21 | S70: 100 | Y70: 5.58 | Z70: 126.58 | AA70: 1297.56 | AB70: 1297.56 | AC70: 12.98 | AD70: 194.63 | AE70: 38.93 | AF70: 2112.1 | AS70: 3 | BB70: 0.02 | BC70: 11.4 | BD70: 4.57 | BE70: 543.65 | BF70: 1568.45
A71: 69 | C71: مصطفى عيد سيد محمد | D71: 28403242500051 | E71: 263 | F71: 223.18 | J71: 371.25 | K71: 1321.61 | L71: 92.51 | M71: 190 | O71: 1604.12 | R71: 14.4 | S71: 95 | Y71: 5.51 | Z71: 338.09 | AA71: 1475.96 | AB71: 1475.96 | AC71: 14.76 | AD71: 221.39 | AE71: 44.28 | AF71: 2300.6 | BB71: 0.02 | BC71: 12.5 | BD71: 6.76 | BE71: 592 | BF71: 1708.6
A72: 70 | C72: منى قاسم أحمد على | D72: 27807022501821 | E72: 280 | J72: 395.24 | K72: 1371.73 | L72: 96.02 | M72: 190 | O72: 1657.75 | R72: 21 | S72: 95 | X72: 34.42 | Y72: 5.82 | Z72: 156.24 | AA72: 1323.75 | AB72: 1323.75 | AC72: 13.24 | AD72: 198.56 | AE72: 39.71 | AF72: 2148.5 | AG72: 8.44 | AP72: 30 | AW72: 115.03 | BB72: 0.04 | BC72: 11.5 | BD72: 4.83 | BE72: 705.3 | BF72: 1443.2
A73: 71 | C73: مها مراد احمد شوكت | D73: 28409202500227 | E73: 260 | J73: 367.01 | K73: 1249.63 | L73: 87.47 | M73: 190 | O73: 1527.1 | R73: 14.4 | S73: 50 | Y73: 3.56 | Z73: 67.96 | AA73: 1178.05 | AB73: 1178.05 | AC73: 11.78 | AD73: 176.71 | AE73: 35.34 | AF73: 1895.96 | AK73: 1 | AR73: 50 | BC73: 10.15 | BD73: 2.09 | BE73: 545.11 | BF73: 1350.85
A74: 72 | C74: ناهد عبد الموجود محمود | D74: 28003102503168 | E74: 255 | F74: 215.02 | J74: 359.95 | K74: 1177.08 | L74: 82.4 | M74: 190 | O74: 1449.48 | R74: 14.4 | S74: 100 | Y74: 5.14 | Z74: 334.56 | AA74: 1324.09 | AB74: 1324.09 | AC74: 13.24 | AD74: 198.61 | AE74: 39.72 | AF74: 2111.2 | AG74: 60 | BB74: 0.01 | BC74: 11 | BD74: 3.78 | BE74: 598 | BF74: 1513.2
A75: 73 | C75: نجلاء احمد دياب سلامة | D75: 27806222500083 | E75: 283 | J75: 399.48 | K75: 1306.41 | L75: 91.45 | M75: 190 | O75: 1587.86 | R75: 21 | S75: 50 | X75: 19.74 | Y75: 5.69 | Z75: 96.43 | AA75: 1234.81 | AB75: 1234.81 | AC75: 12.35 | AD75: 185.22 | AE75: 37.04 | AF75: 2002.78 | AJ75: 70 | BB75: 0.03 | BC75: 10.15 | BD75: 2.11 | BE75: 592.53 | BF75: 1410.25
A76: 74 | C76: نجوان رضا محمد عمر | D76: 27512112500165 | E76: 288 | J76: 406.54 | K76: 1306.41 | L76: 91.45 | M76: 190 | O76: 1587.86 | R76: 21 | S76: 150 | X76: 61.68 | Y76: 5.92 | Z76: 238.6 | AA76: 1269.92 | AB76: 1269.92 | AC76: 12.7 | AD76: 190.49 | AE76: 38.1 | AF76: 2153.13 | AG76: 5.52 | BB76: 0.01 | BC76: 11.65 | BD76: 5.12 | BE76: 545.58 | BF76: 1607.55
A77: 75 | C77: نجوى إبراهيم عبد العال مهران | D77: 28108052500126 | E77: 275 | J77: 388.18 | K77: 1386.15 | L77: 97.03 | M77: 190 | O77: 1673.18 | R77: 21 | S77: 50 | X77: 5.25 | Y77: 5.7 | Z77: 81.95 | AA77: 1316.95 | AB77: 1316.95 | AC77: 13.17 | AD77: 197.54 | AE77: 39.51 | AF77: 2086.87 | AG77: 2.53 | AP77: 37.45 | AR77: 50 | BB77: 0.02 | BC77: 11.15 | BD77: 4.06 | BE77: 636.17 | BF77: 1450.7
A78: 76 | C78: نجوى عزت عبد المجيد القرنى | D78: 26701012500404 | E78: 278 | J78: 392.42 | K78: 1371.73 | L78: 96.02 | M78: 190 | O78: 1657.75 | R78: 21 | S78: 50 | X78: 2.69 | Y78: 5.63 | Z78: 79.32 | AA78: 1294.65 | AB78: 1294.65 | AC78: 12.95 | AD78: 194.2 | AE78: 38.84 | AF78: 2065.46 | AG78: 29.76 | AN78: 2 | AO78: 1 | BB78: 0.04 | BC78: 10.8 | BD78: 3.42 | BE78: 572.76 | BF78: 1492.7
A79: 77 | C79: نسمة على محمد سيد | D79: 28703012500285 | E79: 246.77 | J79: 348.34 | K79: 1139.1 | L79: 79.74 | M79: 183.87 | O79: 1402.71 | R79: 27.87 | Y79: 4.97 | Z79: 32.84 | AA79: 1087.21 | AB79: 1087.21 | AE79: 32.62 | AF79: 1715.27 | BC79: 8.95 | BE79: 457.02 | BF79: 1258.25
A80: 78 | C80: نهال محمد عصمت محمد بيومى | D80: 28409082500082 | E80: 274 | J80: 386.77 | K80: 1306.41 | L80: 91.45 | M80: 190 | O80: 1587.86 | R80: 21 | S80: 95 | Y80: 3.63 | Z80: 119.63 | AA80: 1225.72 | AB80: 1225.72 | AC80: 12.26 | AD80: 183.86 | AE80: 36.77 | AF80: 2021.61 | AJ80: 70 | AN80: 2 | AO80: 1 | BB80: 0.01 | BC80: 10.35 | BD80: 2.5 | BE80: 588.96 | BF80: 1432.65
A81: 79 | C81: نهى عثمان عبدالحافظ ابراهيم | D81: 28310112500426 | E81: 249 | F81: 205.4 | G81: 100 | J81: 351.48 | K81: 1160.94 | L81: 81.27 | M81: 190 | O81: 1432.21 | R81: 14.4 | S81: 50 | Y81: 5.12 | Z81: 374.92 | AA81: 1405.65 | AB81: 1405.65 | AC81: 14.06 | AD81: 210.85 | AE81: 42.17 | AF81: 2148.01 | AZ81: 54.92 | BB81: 0.03 | BC81: 11.55 | BD81: 4.9 | BE81: 616.11 | BF81: 1531.9
A82: 80 | C82: نهى فتحى محمد الصغير | D82: 28712152500268 | E82: 255 | J82: 359.95 | K82: 1096.36 | L82: 76.75 | M82: 190 | O82: 1363.11 | R82: 14.4 | S82: 50 | W82: 14.4 | Y82: 5.14 | Z82: 83.94 | AA82: 1037.1 | AB82: 1037.1 | AC82: 10.37 | AD82: 155.56 | AE82: 31.11 | AF82: 1719.68 | BB82: 0.04 | BC82: 9.15 | BD82: 0.13 | BE82: 446.43 | BF82: 1273.25
A83: 81 | C83: نهى محمد عفيفى محمود | D83: 28708232500181 | E83: 255 | F83: 213.02 | J83: 359.95 | K83: 1177.08 | L83: 82.4 | M83: 190 | O83: 1449.48 | R83: 14.4 | S83: 50 | Y83: 5.14 | Z83: 282.56 | AA83: 1322.09 | AB83: 1322.09 | AC83: 13.22 | AD83: 198.31 | AE83: 39.66 | AF83: 2058.82 | AJ83: 70 | AK83: 1 | AN83: 2 | AO83: 1 | BC83: 10.55 | BD83: 2.86 | BE83: 610.02 | BF83: 1448.8
A84: 82 | C84: نهى محمد نبيل كامل محمود | D84: 28309202500125 | E84: 275 | J84: 388.18 | K84: 1320.14 | L84: 92.41 | M84: 190 | O84: 1602.55 | R84: 21 | S84: 50 | X84: 5.25 | Y84: 5.7 | Z84: 81.95 | AA84: 1246.32 | AB84: 1246.32 | AC84: 12.46 | AD84: 186.95 | AE84: 37.39 | AF84: 2002.82 | BC84: 10.7 | BD84: 3.16 | BE84: 523.62 | BF84: 1479.2
A85: 83 | C85: نيفين عبد اللاه محمد عبد الرحيم | D85: 28204210100288 | E85: 263 | J85: 371.25 | K85: 1321.61 | L85: 92.51 | M85: 190 | O85: 1604.12 | R85: 19.2 | Y85: 5.51 | Z85: 24.71 | AA85: 1257.58 | AB85: 1257.58 | AC85: 12.58 | AD85: 188.64 | AE85: 37.73 | AF85: 1945.74 | AJ85: 70 | BB85: 0.03 | BC85: 9.75 | BD85: 1.34 | BE85: 588.34 | BF85: 1357.4
A86: 84 | C86: هاله علي الدين محمود سيد | D86: 28707172500121 | E86: 260 | F86: 221.37 | J86: 367.01 | K86: 1249.63 | L86: 87.47 | M86: 190 | O86: 1527.1 | R86: 14.4 | S86: 50 | Y86: 5.47 | Z86: 291.24 | AA86: 1401.33 | AB86: 1401.33 | AC86: 14.01 | AD86: 210.2 | AE86: 42.04 | AF86: 2161.66 | AR86: 60 | BB86: 0.02 | BC86: 11.65 | BD86: 5.05 | BE86: 625.56 | BF86: 1536.1
A87: 85 | C87: وسام محمد احمد عيسى | D87: 28611122500122 | E87: 119.23 | F87: 226.45 | J87: 168.3 | K87: 569.2 | L87: 39.84 | M87: 85.8 | O87: 694.84 | R87: 6.5 | Y87: 2.49 | Z87: 235.44 | AA87: 761.98 | AB87: 761.98 | AC87: 7.62 | AD87: 114.3 | AE87: 22.86 | AF87: 1110.4 | BB87: 652.95 | BC87: 5.4 | BE87: 945.85 | BF87: 164.55
A88: 86 | C88: ولاء عبد الناصر حسين أحمد | D88: 28703202500168 | E88: 260 | F88: 221.37 | J88: 367.01 | K88: 1312.11 | L88: 91.85 | M88: 190 | O88: 1593.96 | R88: 14.4 | S88: 100 | Y88: 5.47 | Z88: 341.24 | AA88: 1468.19 | AB88: 1468.19 | AC88: 14.68 | AD88: 220.23 | AE88: 44.05 | AF88: 2291.23 | BB88: 0.04 | BC88: 12.45 | BD88: 6.68 | BE88: 588.08 | BF88: 1703.15
A89: 87 | C89: ياسمين محمد رفعت محمد | D89: 28607202503745 | E89: 260 | F89: 221.37 | J89: 367.01 | K89: 1312.11 | L89: 91.85 | M89: 190 | O89: 1593.96 | R89: 14.4 | S89: 50 | Y89: 5.47 | Z89: 291.24 | AA89: 1468.19 | AB89: 1468.19 | AC89: 14.68 | AD89: 220.23 | AE89: 44.05 | AF89: 2241.23 | AJ89: 70 | BB89: 0.03 | BC89: 11.55 | BD89: 4.89 | BE89: 655.38 | BF89: 1585.85

Sheet تفصيلي المرتب يناير 2018
A1: رقم | B1: صورة شخصية | C1: يناير-18 | D1: الرقم القومى | E1: أساسى المرتب فى ٣٠-٦ | F1: فروق تسوية الأجر المكمل | G1: حافز التميز ماجيستير | H1: حافز التميز دكتوراه | I1: أساسى التأمينات (أساسى ٣٠-٦ * ١.٠٩) | J1: الأجر الوظيفى | K1: العلاوة الدورية ٧ % | L1: علاوة غلاء المعيشة | M1: حافز التميز العلمى | N1: إجمالى الأجر الوظيفى | O1: علاوة الترقية | P1: العلاوة التشجيعية | Q1: بدل إقامة - غير خاضع للضريبة | R1: بدل نقدى - غير خاضع للمعاش | S1: بدل عدوى | T1: بدل محاماه | U1: بدل تفرغ تجاريين | V1: بدل تفرغ مهندسين | W1: الأجرالمكمل | X1: الحافز التعويضى | Y1: إجمالى الأجر المكمل | Z1: بدل عدوى2 | AA1: بدل محاماه3 | AB1: بدل تفرغ تجاريين4 | AC1: بدل تفرغ مهندسين5 | AD1: الأجرالمكمل6 | AE1: الحافز التعويضى7 | AF1: إجمالى الأجر المكمل8 | AG1: اعتبارى | AH1: إدخار بدون وجه حق | AI1: اعارة | AJ1: صندوق التأمين الخاص للعاملين بالجامعة | AK1: حساب سيارات | AL1: نادى العاملين بالجامعة | AM1: نقابة مستشفي جامعة أسيوط | AN1: صندوق الزمالة | AO1: نقابة العاملين | AP1: صندوق أسرة الجامعة | AQ1: شركة فودافون | AR1: الشركة العربية للمنسوجات | AS1: حساب سيارات المستشفى | AT1: جمعية رعاية العاملين | AU1: شركة مصر لتامينات الحياه | AV1: جمعية كفالة اليتيم | AW1: الجمعية النسائية | AX1: بنك القاهرة فرع أسيوط | AY1: بنك مصر فرع جامعة أسيوط | AZ1: شركة إتصالات | BA1: نقابة المهن التطبيقية | BB1: شركة موبينيل | BC1: الجزاءات | BD1: إيرادات | BE1: الدمغة العادية | BF1: الضريبة الموحدة | BG1: إجمالى المستقطع | BH1: الصافى
A2: 1 | C2: ابو بكر جلال علي عبد الحافظ | D2: 28310092500254 | E2: 259 | I2: 335.41 | J2: 691.74 | K2: 48.43 | L2: 48.43 | N2: 788.6 | Q2: 9.36 | R2: 145 | X2: 3.41 | Y2: 157.77 | Z2: 897.45 | AA2: 897.45 | AB2: 8.97 | AC2: 134.62 | AD2: 26.92 | AE2: 1187.31 | AF2: 3.35 | AJ2: 116.7 | BE2: 5.2 | BG2: 508.51 | BH2: 678.8
A3: 2 | C3: اسامة مصطفى محمد عبد الرحمن | D3: 28301132500091 | E3: 260 | F3: 219.37 | I3: 336.71 | J3: 1096.17 | K3: 76.73 | L3: 76.73 | N3: 1249.63 | Q3: 14.4 | R3: 50 | X3: 5.47 | Y3: 289.24 | Z3: 1152.16 | AA3: 1152.16 | AB3: 11.52 | AC3: 172.82 | AD3: 34.56 | AE3: 1828.48 | AF3: 3.37 | AG3: 5.26 | BD3: 0.04 | BE3: 9.75 | BF3: 3.04 | BG3: 481.58 | BH3: 1346.9
A4: 3 | C4: اسامه عبد النعيم عاصم محمد | D4: 27511172502659 | E4: 276 | I4: 357.43 | J4: 1145.97 | K4: 80.22 | L4: 80.22 | N4: 1306.41 | Q4: 21 | R4: 140 | W4: 0.3 | X4: 5.6 | Y4: 166.9 | Z4: 975.88 | AA4: 975.88 | AB4: 9.76 | AC4: 146.38 | AD4: 29.28 | AE4: 1733.78 | AF4: 3.57 | BD4: 0.04 | BE4: 9.35 | BF4: 2.04 | BG4: 429.28 | BH4: 1304.5
A5: 4 | C5: اسراء أسامة محمد طلبه | D5: 28606128800361 | E5: 266 | G5: 97 | I5: 344.48 | J5: 1117.37 | K5: 78.22 | L5: 78.22 | N5: 1273.81 | Q5: 21 | R5: 50 | X5: 5.54 | Y5: 173.54 | Z5: 1052.87 | AA5: 1052.87 | AB5: 10.53 | AC5: 157.93 | AD5: 31.59 | AE5: 1719.73 | AF5: 3.44 | AK5: 35 | BD5: 0.01 | BE5: 8.85 | BF5: 0.7 | BG5: 480.98 | BH5: 1238.75
A6: 5 | C6: اسماء ابو زيد فؤاد ابو زيد | D6: 28312138800447 | E6: 268 | I6: 347.07 | J6: 1144.27 | K6: 80.1 | L6: 80.1 | N6: 1304.47 | Q6: 21 | R6: 50 | S6: 19.2 | X6: 5.68 | Y6: 95.88 | Z6: 1003.28 | AA6: 1003.28 | AB6: 10.03 | AC6: 150.49 | AD6: 30.1 | AE6: 1663.85 | AF6: 3.47 | AG6: 2.44 | AK6: 35 | AL6: 1 | BD6: 0.01 | BE6: 8.5 | BG6: 469.4 | BH6: 1194.45
A7: 6 | C7: اسماء اسلام توفيق عبد المتجلى | D7: 28611162500168 | E7: 263 | I7: 340.59 | J7: 1104.1 | K7: 77.29 | L7: 77.29 | N7: 1258.68 | Q7: 14.4 | R7: 50 | X7: 5.51 | Y7: 69.91 | Z7: 938 | AA7: 938 | AB7: 9.38 | AC7: 140.7 | AD7: 28.14 | AE7: 1578.34 | AF7: 3.41 | AL7: 1 | AM7: 2 | AN7: 2 | BD7: 0.02 | BE7: 8.35 | BG7: 413.99 | BH7: 1164.35
A8: 7 | C8: الشيماء نور الدين مطاوع عبد الحافظ | D8: 28712162500142 | E8: 260 | I8: 336.71 | J8: 1096.17 | K8: 76.73 | L8: 76.73 | N8: 1249.63 | Q8: 14.4 | R8: 50 | X8: 5.47 | Y8: 69.87 | Z8: 932.79 | AA8: 932.79 | AB8: 9.33 | AC8: 139.92 | AD8: 27.98 | AE8: 1567.44 | AF8: 3.37 | AO8: 2 | AP8: 1 | BE8: 8.3 | BG8: 408.99 | BH8: 1158.45
A9: 8 | C9: امل محمد عبد المجيد تمام | D9: 28510032502061 | E9: 263 | I9: 340.59 | J9: 1109.45 | K9: 77.66 | L9: 77.66 | N9: 1264.77 | Q9: 21 | R9: 95 | X9: 5.51 | Y9: 121.51 | Z9: 950.69 | AA9: 950.69 | AB9: 9.51 | AC9: 142.6 | AD9: 28.52 | AE9: 1638.44 | AF9: 3.41 | AQ9: 37.45 | AR9: 285 | BE9: 8.75 | BF9: 0.41 | BG9: 736.04 | BH9: 902.4
A10: 9 | C10: اميرة إسماعيل تهامى إسماعيل | D10: 28806242500229 | E10: 260 | I10: 336.71 | J10: 1096.17 | K10: 76.73 | L10: 76.73 | N10: 1249.63 | Q10: 14.4 | R10: 50 | X10: 5.47 | Y10: 69.87 | Z10: 932.79 | AA10: 932.79 | AB10: 9.33 | AC10: 139.92 | AD10: 27.98 | AE10: 1567.44 | AF10: 3.37 | BE10: 8.3 | BG10: 405.99 | BH10: 1161.45
A11: 10 | C11: اميرة محمد عبد المعطى محمد | D11: 28504252500204 | E11: 232.5 | F11: 184.45 | I11: 301.09 | J11: 1021.91 | K11: 71.53 | L11: 71.53 | N11: 1164.97 | Q11: 14.4 | R11: 50 | X11: 5.13 | Y11: 253.98 | Z11: 1067.86 | AA11: 1067.86 | AB11: 10.68 | AC11: 160.18 | AD11: 32.04 | AE11: 1685.07 | AF11: 3.01 | AK11: 35 | AL11: 1 | AO11: 2 | AP11: 1 | BD11: 0.03 | BE11: 8.7 | BF11: 0.35 | BG11: 473.82 | BH11: 1211.25
A12: 11 | C12: اميره بدر توفيق حسن | D12: 28604152500066 | E12: 260 | I12: 336.71 | J12: 1096.17 | K12: 76.73 | L12: 76.73 | N12: 1249.63 | Q12: 14.4 | R12: 140 | X12: 5.47 | Y12: 159.87 | Z12: 932.79 | AA12: 932.79 | AB12: 9.33 | AC12: 139.92 | AD12: 27.98 | AE12: 1657.44 | AF12: 3.37 | AQ12: 37.45 | BD12: 0.04 | BE12: 9 | BF12: 1.06 | BG12: 445.24 | BH12: 1212.2
A13: 12 | C13: اميره محمد حنفي يوسف | D13: 28109162500128 | E13: 274 | I13: 354.84 | J13: 1145.97 | K13: 80.22 | L13: 80.22 | N13: 1306.41 | Q13: 21 | R13: 50 | X13: 5.58 | Y13: 76.58 | Z13: 978.15 | AA13: 978.15 | AB13: 9.78 | AC13: 146.72 | AD13: 29.34 | AE13: 1643.36 | AF13: 3.55 | AG13: 3.04 | AS13: 60 | BD13: 0.04 | BE13: 8.65 | BF13: 0.19 | BG13: 489.56 | BH13: 1153.8
A14: 13 | C14: انعام احمد ابراهيم مهران | D14: 27108062500783 | E14: 452.58 | I14: 586.1 | J14: 1645.17 | K14: 115.16 | L14: 115.16 | N14: 1875.49 | Q14: 21 | R14: 150 | W14: 230.78 | X14: 70.06 | Y14: 471.84 | Z14: 1611.23 | AA14: 1611.23 | AB14: 16.11 | AC14: 241.68 | AD14: 48.34 | AE14: 2776.54 | AF14: 5.86 | AL14: 1 | AM14: 2 | AP14: 1 | AQ14: 43.6 | AS14: 60 | BD14: 0.03 | BE14: 15.15 | BF14: 17.37 | BG14: 828.64 | BH14: 1947.9
A15: 14 | C15: اوميمه جمال حلمى حسن | D15: 27412022500064 | E15: 283 | I15: 366.49 | J15: 1145.97 | K15: 80.22 | L15: 80.22 | N15: 1306.41 | Q15: 21 | R15: 145 | W15: 21.74 | X15: 5.69 | Y15: 193.43 | Z15: 988.35 | AA15: 988.35 | AB15: 9.88 | AC15: 148.25 | AD15: 29.65 | AE15: 1764.57 | AF15: 3.66 | BD15: 0.01 | BE15: 9.55 | BF15: 2.51 | BG15: 436.82 | BH15: 1327.75
A16: 15 | C16: ايفيلين ربيل بطرس اسكاروس | D16: 27811202502229 | E16: 271 | I16: 350.95 | J16: 1152.69 | K16: 80.69 | L16: 80.69 | N16: 1314.07 | Q16: 21 | R16: 95 | W16: 0.17 | X16: 5.71 | Y16: 121.88 | Z16: 990 | AA16: 990 | AB16: 9.9 | AC16: 148.5 | AD16: 29.7 | AE16: 1697.75 | AF16: 3.51 | AG16: 14.28 | AK16: 35 | BD16: 0.02 | BE16: 8.7 | BF16: 0.31 | BG16: 478.15 | BH16: 1219.6
A17: 16 | C17: ايمان عبدالحميد عبد اللطيف | D17: 28009172501861 | E17: 278 | I17: 360.02 | J17: 1203.27 | K17: 84.23 | L17: 84.23 | N17: 1371.73 | Q17: 21 | R17: 50 | W17: 2.69 | X17: 5.63 | Y17: 79.32 | Z17: 1041.03 | AA17: 1041.03 | AB17: 10.41 | AC17: 156.15 | AD17: 31.23 | AE17: 1724.44 | AF17: 3.6 | AK17: 40 | BD17: 0.04 | BE17: 8.85 | BF17: 0.65 | BG17: 487.84 | BH17: 1236.6
A18: 17 | C18: ايمان محمد عبد المعطي محمد | D18: 28401292500181 | E18: 264 | I18: 341.89 | J18: 1163.53 | K18: 81.45 | L18: 81.45 | N18: 1326.43 | Q18: 21 | R18: 140 | X18: 5.69 | Y18: 166.69 | Z18: 1011.23 | AA18: 1011.23 | AB18: 10.11 | AC18: 151.68 | AD18: 30.34 | AE18: 1757.05 | AF18: 3.42 | AK18: 35 | AL18: 1 | AO18: 2 | AP18: 1 | BD18: 0.02 | BE18: 9.25 | BF18: 1.7 | BG18: 473 | BH18: 1284.05
A19: 18 | C19: بسمة عبد العزيز ابو العلا | D19: 28302182500226 | E19: 274 | I19: 354.84 | J19: 1145.97 | K19: 80.22 | L19: 80.22 | N19: 1306.41 | Q19: 21 | R19: 50 | S19: 15 | X19: 5.64 | Y19: 91.64 | Z19: 993.21 | AA19: 993.21 | AB19: 9.93 | AC19: 148.98 | AD19: 29.8 | AE19: 1661.29 | AF19: 3.55 | BD19: 0.01 | BE19: 8.8 | BF19: 0.51 | BG19: 431.49 | BH19: 1229.8
A20: 19 | C20: بيتر عاطف كمال متري | D20: 28009152500311 | E20: 270 | I20: 349.66 | J20: 1126.36 | K20: 78.85 | L20: 78.85 | N20: 1284.06 | Q20: 21 | R20: 145 | W20: 0.9 | X20: 5.53 | Y20: 172.43 | Z20: 961.83 | AA20: 961.83 | AB20: 9.62 | AC20: 144.27 | AD20: 28.85 | AE20: 1712.66 | AF20: 3.5 | AI20: 6.48 | BD20: 0.02 | BE20: 9.2 | BF20: 1.63 | BG20: 428.26 | BH20: 1284.4
A21: 20 | C21: جرجس فيليب عزيز نخله | D21: 28511172500374 | E21: 263 | I21: 340.59 | J21: 1109.45 | K21: 77.66 | L21: 77.66 | N21: 1264.77 | Q21: 21 | R21: 50 | X21: 5.51 | Y21: 76.51 | Z21: 950.69 | AA21: 950.69 | AB21: 9.51 | AC21: 142.6 | AD21: 28.52 | AE21: 1593.44 | AF21: 3.41 | AO21: 2 | AT21: 3 | BD21: 0.01 | BE21: 8.4 | BG21: 417.84 | BH21: 1175.6
A22: 21 | C22: حسام جمال الدين محمد محمود | D22: 28710202500351 | E22: 263 | F22: 223.18 | I22: 340.59 | J22: 1159.31 | K22: 81.15 | L22: 81.15 | N22: 1321.61 | Q22: 14.4 | R22: 100 | X22: 5.51 | Y22: 343.09 | Z22: 1224.11 | AA22: 1224.11 | AB22: 12.24 | AC22: 183.62 | AD22: 36.72 | AE22: 1968.81 | AF22: 3.41 | AL22: 1 | BD22: 0.04 | BE22: 10.65 | BF22: 5.47 | BG22: 503.61 | BH22: 1465.2
A23: 22 | C23: حنان فاروق محمد طلبه | D23: 28102032500229 | E23: 278 | I23: 360.02 | J23: 1145.97 | K23: 80.22 | L23: 80.22 | N23: 1306.41 | Q23: 21 | R23: 50 | W23: 4.69 | X23: 5.63 | Y23: 81.32 | Z23: 977.71 | AA23: 977.71 | AB23: 9.78 | AC23: 146.66 | AD23: 29.33 | AE23: 1649.1 | AF23: 3.6 | BE23: 8.7 | BF23: 0.33 | BG23: 428.35 | BH23: 1220.75
A24: 23 | C24: حنان محمود محمد أحمد | D24: 29208022500243 | E24: 246 | I24: 318.58 | J24: 942.46 | K24: 65.97 | L24: 65.97 | N24: 1074.4 | Q24: 14.4 | R24: 50 | X24: 5.08 | Y24: 69.48 | Z24: 775.3 | AA24: 775.3 | AB24: 7.75 | AC24: 116.29 | AD24: 23.26 | AE24: 1358.09 | AF24: 3.19 | BD24: 0.04 | BE24: 6.65 | BG24: 350.79 | BH24: 1007.3
A25: 24 | C25: خالد فتحي عبد العزيز اسماعيل | D25: 28606212500276 | E25: 263 | I25: 340.59 | J25: 1104.1 | K25: 77.29 | L25: 77.29 | N25: 1258.68 | Q25: 14.4 | R25: 50 | X25: 5.51 | Y25: 69.91 | Z25: 938 | AA25: 938 | AB25: 9.38 | AC25: 140.7 | AD25: 28.14 | AE25: 1578.34 | AF25: 3.41 | BD25: 0.02 | BE25: 8.35 | BG25: 408.99 | BH25: 1169.35
A26: 25 | C26: دعاء احمد جمال عبدالفتاح حسن | D26: 27808192500183 | E26: 278 | I26: 360.02 | J26: 1174.62 | K26: 82.22 | L26: 82.22 | N26: 1339.06 | Q26: 21 | R26: 95 | W26: 5.39 | X26: 5.63 | Y26: 127.02 | Z26: 1011.06 | AA26: 1011.06 | AB26: 10.11 | AC26: 151.66 | AD26: 30.33 | AE26: 1733.78 | AF26: 3.6 | AJ26: 116.7 | AL26: 1 | BE26: 9.25 | BF26: 1.81 | BG26: 558.08 | BH26: 1175.7
A27: 26 | C27: دعاء محمد عباس عامر | D27: 28110182500181 | E27: 263 | I27: 340.59 | J27: 1104.1 | K27: 77.29 | L27: 77.29 | N27: 1258.68 | Q27: 14.4 | R27: 50 | X27: 5.51 | Y27: 69.91 | Z27: 938 | AA27: 938 | AB27: 9.38 | AC27: 140.7 | AD27: 28.14 | AE27: 1578.34 | AF27: 3.41 | AQ27: 37.45 | BD27: 0.02 | BE27: 8.35 | BG27: 446.44 | BH27: 1131.9
A28: 27 | C28: دينا حسين اسماعيل احمد | D28: 28209102500301 | E28: 267 | G28: 63.05 | I28: 345.77 | J28: 745.08 | K28: 52.16 | L28: 52.16 | N28: 849.4 | Q28: 13.65 | R28: 95 | X28: 3.57 | Y28: 175.27 | Z28: 1050.52 | AA28: 1050.52 | AB28: 10.51 | AC28: 157.58 | AD28: 31.52 | AE28: 1296.9 | AF28: 3.46 | BE28: 5.6 | BG28: 441.8 | BH28: 855.1
A29: 28 | C29: دينا مصطفى سيد محمد البهنساوى | D29: 28412312500207 | E29: 270 | I29: 349.66 | J29: 1126.36 | K29: 78.85 | L29: 78.85 | N29: 1284.06 | Q29: 21 | R29: 95 | X29: 5.53 | Y29: 121.53 | Z29: 960.93 | AA29: 960.93 | AB29: 9.61 | AC29: 144.14 | AD29: 28.83 | AE29: 1661.6 | AF29: 3.5 | BD29: 0.03 | BE29: 8.85 | BF29: 0.75 | BG29: 420.3 | BH29: 1241.3
A30: 29 | C30: رانيا محمود نشأت عباس محمد | D30: 28110092500107 | E30: 263 | F30: 225.18 | I30: 340.59 | J30: 1159.31 | K30: 81.15 | L30: 81.15 | N30: 1321.61 | Q30: 14.4 | R30: 50 | T30: 14.4 | X30: 5.51 | Y30: 309.49 | Z30: 1240.51 | AA30: 1240.51 | AB30: 12.41 | AC30: 186.08 | AD30: 37.22 | AE30: 1938.34 | AF30: 3.41 | AG30: 7.54 | AK30: 35 | BD30: 0.03 | BE30: 10.05 | BF30: 3.93 | BG30: 547.94 | BH30: 1390.4
A31: 30 | C31: رشا رفعت عبد العزيز عبد الرحيم | D31: 28303132500264 | E31: 260 | I31: 336.71 | J31: 1096.17 | K31: 76.73 | L31: 76.73 | N31: 1249.63 | Q31: 14.4 | R31: 50 | X31: 5.47 | Y31: 69.87 | Z31: 932.79 | AA31: 932.79 | AB31: 9.33 | AC31: 139.92 | AD31: 27.98 | AE31: 1567.44 | AF31: 3.37 | AK31: 35 | BE31: 8.05 | BG31: 440.74 | BH31: 1126.7
A32: 31 | C32: رشا طلعت صادق مقار | D32: 28309012505066 | E32: 264 | I32: 341.89 | J32: 1161.36 | K32: 81.3 | L32: 81.3 | N32: 1323.96 | Q32: 14.4 | R32: 145 | X32: 5.52 | Y32: 164.92 | Z32: 1001.99 | AA32: 1001.99 | AB32: 10.02 | AC32: 150.3 | AD32: 30.06 | AE32: 1751.06 | AF32: 3.42 | AG32: 9.06 | AK32: 35 | BD32: 0.04 | BE32: 9.2 | BF32: 1.59 | BG32: 475.16 | BH32: 1275.9
A33: 32 | C33: زينب شعبان عجمى يوسف | D33: 26804232500107 | E33: 462.98 | I33: 599.57 | J33: 1625.85 | K33: 113.81 | L33: 113.81 | N33: 1853.47 | Q33: 28.5 | R33: 150 | W33: 284.01 | X33: 71.85 | Y33: 534.36 | Z33: 1638.26 | AA33: 1638.26 | AB33: 16.38 | AC33: 245.74 | AD33: 49.15 | AE33: 2825.02 | AF33: 6 | AJ33: 344.45 | AQ33: 133.26 | AS33: 60 | AU33: 33.27 | BD33: 0.01 | BE33: 15.35 | BF33: 17.93 | BG33: 1305.62 | BH33: 1519.4
A34: 33 | C34: سومية أحمد عبد العال أحمد | D34: 28807202501628 | E34: 254 | I34: 328.94 | J34: 1080.34 | K34: 75.62 | L34: 75.62 | N34: 1231.58 | Q34: 14.4 | S34: 19.2 | X34: 5.45 | Y34: 39.05 | Z34: 941.69 | AA34: 941.69 | AB34: 9.42 | AC34: 141.25 | AD34: 28.25 | AE34: 1518.63 | AF34: 3.29 | BD34: 0.04 | BE34: 7.95 | BG34: 405.63 | BH34: 1113
A35: 34 | C35: شيماء حسن زكى حسين | D35: 28008042500107 | E35: 263 | F35: 223.18 | I35: 340.59 | J35: 1104.1 | K35: 77.29 | L35: 77.29 | N35: 1258.68 | Q35: 14.4 | R35: 50 | X35: 5.51 | Y35: 293.09 | Z35: 1161.18 | AA35: 1161.18 | AB35: 11.61 | AC35: 174.18 | AD35: 34.84 | AE35: 1843.93 | AF35: 3.41 | AG35: 10.69 | AQ35: 37.45 | AS35: 60 | AV35: 10 | BE35: 9.8 | BF35: 3.16 | BG35: 598.68 | BH35: 1245.25
A36: 35 | C36: شيماء سيد علي حسن | D36: 28308012503041 | E36: 270 | I36: 349.66 | J36: 1126.36 | K36: 78.85 | L36: 78.85 | N36: 1284.06 | Q36: 21 | R36: 50 | X36: 5.53 | Y36: 76.53 | Z36: 960.93 | AA36: 960.93 | AB36: 9.61 | AC36: 144.14 | AD36: 28.83 | AE36: 1616.6 | AF36: 3.5 | AJ36: 116.7 | AK36: 35 | AW36: 381.55 | BD36: 0.03 | BE36: 8.25 | BG36: 952.2 | BH36: 664.4
A37: 36 | C37: شيماء فواز عبد الرحمن مهران | D37: 28402062500227 | E37: 271 | I37: 350.95 | J37: 1145.97 | K37: 80.22 | L37: 80.22 | N37: 1306.41 | Q37: 21 | R37: 95 | X37: 5.71 | Y37: 121.71 | Z37: 982.17 | AA37: 982.17 | AB37: 9.82 | AC37: 147.33 | AD37: 29.47 | AE37: 1688.44 | AF37: 3.51 | AK37: 35 | BD37: 0.04 | BE37: 8.75 | BF37: 0.45 | BG37: 461.74 | BH37: 1226.7
A38: 37 | C38: شيماء محسن محمد فرغلى | D38: 28311190104789 | E38: 246 | I38: 318.58 | J38: 880 | K38: 65 | L38: 65 | N38: 1010 | Q38: 14.4 | R38: 145 | Y38: 159.4 | Z38: 705.82 | AA38: 705.82 | AB38: 7.06 | AC38: 105.87 | AD38: 21.17 | AE38: 1370.41 | AF38: 3.19 | BE38: 7.4 | BG38: 330.66 | BH38: 1039.75
A39: 38 | C39: تهامي أنور تهامى محمد | D39: 29005272502634 | E39: 250 | I39: 323.76 | J39: 1041.98 | K39: 72.94 | L39: 72.94 | N39: 1187.86 | Q39: 14.4 | R39: 50 | X39: 5.24 | Y39: 69.64 | Z39: 883.74 | AA39: 883.74 | AB39: 8.84 | AC39: 132.56 | AD39: 26.51 | AE39: 1493.4 | AF39: 3.24 | BD39: 0.01 | BE39: 7.9 | BG39: 386.35 | BH39: 1107.05
A40: 39 | C40: عبد الحميد حسنين محمد حسنين | D40: 27706242500131 | E40: 258 | I40: 334.12 | J40: 1039.6 | K40: 72.77 | L40: 72.77 | N40: 1185.14 | Q40: 14.4 | R40: 145 | X40: 5.11 | Y40: 164.51 | Z40: 870.53 | AA40: 870.53 | AB40: 8.71 | AC40: 130.58 | AD40: 26.12 | AE40: 1585.22 | AF40: 3.34 | BD40: 0.01 | BE40: 8.6 | BF40: 0.01 | BG40: 386.72 | BH40: 1198.5
A41: 40 | C41: عبير فاروق مصطفي إسماعيل | D41: 28410222500183 | E41: 263 | I41: 340.59 | J41: 1137.19 | K41: 79.6 | L41: 79.6 | N41: 1296.39 | Q41: 21 | R41: 95 | X41: 5.51 | Y41: 121.51 | Z41: 982.31 | AA41: 982.31 | AB41: 9.82 | AC41: 147.35 | AD41: 29.47 | AE41: 1676.07 | AF41: 3.41 | AL41: 1 | AO41: 2 | BD41: 0.04 | BE41: 8.95 | BF41: 0.97 | BG41: 426.87 | BH41: 1249.2
A42: 41 | C42: عبير نصير كامل محمد | D42: 28607031900244 | E42: 257 | I42: 332.82 | J42: 1088.25 | K42: 76.18 | L42: 76.18 | N42: 1240.61 | Q42: 14.4 | R42: 140 | X42: 5.43 | Y42: 159.83 | Z42: 927.62 | AA42: 927.62 | AB42: 9.28 | AC42: 139.14 | AD42: 27.83 | AE42: 1646.58 | AF42: 3.33 | BD42: 0.01 | BE42: 8.95 | BF42: 0.9 | BG42: 404.63 | BH42: 1241.95
A43: 42 | C43: عثمان محمد عبده محمد | D43: 26712062501837 | E43: 257 | F43: 221.56 | I43: 332.82 | J43: 1088.25 | K43: 76.18 | L43: 76.18 | N43: 1240.61 | Q43: 14.4 | R43: 145 | T43: 14.4 | X43: 5.43 | Y43: 400.79 | Z43: 1163.58 | AA43: 1163.58 | AB43: 11.64 | AC43: 174.54 | AD43: 34.91 | AE43: 1932.38 | AF43: 3.33 | AG43: 34.03 | BD43: 0.04 | BE43: 10.3 | BF43: 4.49 | BG43: 514.43 | BH43: 1417.95
A44: 43 | C44: عزة سيد تمام مصطفى | D44: 28707062500061 | E44: 254 | I44: 328.94 | J44: 1080.34 | K44: 75.62 | L44: 75.62 | N44: 1231.58 | Q44: 14.4 | R44: 50 | X44: 5.45 | Y44: 69.85 | Z44: 922.49 | AA44: 922.49 | AB44: 9.22 | AC44: 138.37 | AD44: 27.67 | AE44: 1545.77 | AF44: 3.29 | BD44: 0.01 | BE44: 8.2 | BG44: 400.07 | BH44: 1145.7
A45: 44 | C45: عزت سيد حسن محمد | D45: 26106032500111 | E45: 288 | I45: 372.97 | J45: 1145.97 | K45: 80.22 | L45: 80.22 | N45: 1306.41 | Q45: 21 | R45: 150 | W45: 65.68 | X45: 5.98 | Y45: 242.66 | Z45: 1026.1 | AA45: 1026.1 | AB45: 10.26 | AC45: 153.91 | AD45: 30.78 | AE45: 1822.35 | AF45: 3.73 | AJ45: 93.35 | AL45: 1 | AO45: 2 | AP45: 1 | AX45: 345.15 | BD45: 0.04 | BE45: 9.85 | BF45: 3.39 | BG45: 894.15 | BH45: 928.2
A46: 45 | C46: عزه عبد الحميد زكى محمد | D46: 27203062500221 | E46: 274 | I46: 354.84 | J46: 1145.97 | K46: 80.22 | L46: 80.22 | N46: 1306.41 | Q46: 21 | R46: 50 | X46: 5.64 | Y46: 76.64 | Z46: 978.21 | AA46: 978.21 | AB46: 9.78 | AC46: 146.73 | AD46: 29.35 | AE46: 1643.44 | AF46: 3.55 | AG46: 49.96 | AK46: 35 | BD46: 0.01 | BE46: 8.05 | BG46: 510.69 | BH46: 1132.75
A47: 46 | C47: علاء رمضان توفيق على | D47: 28505012500157 | E47: 278 | I47: 360.02 | J47: 1174.62 | K47: 82.22 | L47: 82.22 | N47: 1339.06 | Q47: 21 | R47: 95 | W47: 7.39 | X47: 5.63 | Y47: 129.02 | Z47: 1013.06 | AA47: 1013.06 | AB47: 10.13 | AC47: 151.96 | AD47: 30.39 | AE47: 1736.16 | AF47: 3.6 | BD47: 0.04 | BE47: 9.3 | BF47: 1.85 | BG47: 441.11 | BH47: 1295.05
A48: 47 | C48: عمر اسماعيل عمر اسماعيل | D48: 28206262500473 | E48: 274 | I48: 354.84 | J48: 1145.97 | K48: 80.22 | L48: 80.22 | N48: 1306.41 | Q48: 21 | R48: 95 | T48: 21 | X48: 5.58 | Y48: 142.58 | Z48: 999.15 | AA48: 999.15 | AB48: 9.99 | AC48: 149.87 | AD48: 29.97 | AE48: 1713.35 | AF48: 3.55 | AJ48: 56.25 | BD48: 0.04 | BE48: 9.15 | BF48: 1.51 | BG48: 490.9 | BH48: 1222.45
A49: 48 | C49: عمر عبد الرحمن دوينى عبدالرحمن | D49: 28307182502212 | E49: 260 | F49: 221.37 | I49: 336.71 | J49: 1096.17 | K49: 76.73 | L49: 76.73 | N49: 1249.63 | Q49: 14.4 | R49: 50 | X49: 5.47 | Y49: 291.24 | Z49: 1154.16 | AA49: 1154.16 | AB49: 11.54 | AC49: 173.12 | AD49: 34.62 | AE49: 1830.86 | AF49: 3.37 | AG49: 16 | BD49: 0.01 | BE49: 9.65 | BF49: 2.86 | BG49: 492.61 | BH49: 1338.25
A50: 49 | C50: عمر محى عبد العليم عبد الحافظ | D50: 28507012500494 | E50: 257 | F50: 217.56 | G50: 97 | I50: 332.82 | J50: 1088.25 | K50: 76.18 | L50: 76.18 | N50: 1240.61 | Q50: 14.4 | R50: 100 | T50: 14.4 | X50: 5.43 | Y50: 448.79 | Z50: 1256.58 | AA50: 1256.58 | AB50: 12.57 | AC50: 188.49 | AD50: 37.7 | AE50: 1998.05 | AF50: 3.33 | BD50: 0.01 | BE50: 10.8 | BF50: 5.92 | BG50: 510.2 | BH50: 1487.85
A51: 50 | C51: عمرو حامد حسن محمد | D51: 28112020101791 | E51: 255 | F51: 215.21 | G51: 63.05 | I51: 330.23 | J51: 671.14 | K51: 46.98 | L51: 46.98 | N51: 765.1 | Q51: 9.36 | R51: 150 | T51: 9.36 | X51: 3.34 | Y51: 450.32 | Z51: 1159.05 | AA51: 1159.05 | AB51: 11.59 | AC51: 173.86 | AD51: 34.77 | AE51: 1504.98 | AF51: 3.3 | BD51: 0.04 | BE51: 7.4 | BG51: 470.73 | BH51: 1034.25
A52: 51 | C52: عمرو محمد محمد عبد المجيد | D52: 27912222500339 | E52: 284 | G52: 97 | H52: 200 | I52: 367.79 | J52: 1145.97 | K52: 80.22 | L52: 80.22 | N52: 1306.41 | Q52: 21 | R52: 145 | W52: 29.66 | X52: 5.7 | Y52: 498.36 | Z52: 1291.98 | AA52: 1291.98 | AB52: 12.92 | AC52: 193.8 | AD52: 38.76 | AE52: 2127.49 | AF52: 3.68 | AL52: 1 | AO52: 2 | AP52: 1 | AQ52: 43.6 | BD52: 0.01 | BE52: 11.55 | BF52: 7.9 | BG52: 583.39 | BH52: 1544.1
A53: 52 | C53: عمرو محمود أحمد حسان | D53: 28109012500413 | E53: 264 | F53: 226.45 | I53: 341.89 | J53: 752.82 | K53: 52.7 | L53: 52.7 | N53: 858.22 | Q53: 9.36 | R53: 100 | T53: 9.36 | X53: 3.7 | Y53: 348.87 | Z53: 1239.37 | AA53: 1239.37 | AB53: 12.39 | AC53: 185.91 | AD53: 37.18 | AE53: 1514.37 | AF53: 3.42 | AY53: 182 | BD53: 0.04 | BE53: 7.25 | BG53: 680.77 | BH53: 833.6
A54: 53 | C54: غادة أحمد سيد عبد العال | D54: 27909242500041 | E54: 270 | I54: 349.66 | J54: 1126.36 | K54: 78.85 | L54: 78.85 | N54: 1284.06 | Q54: 21 | R54: 145 | X54: 5.53 | Y54: 171.53 | Z54: 960.93 | AA54: 960.93 | AB54: 9.61 | AC54: 144.14 | AD54: 28.83 | AE54: 1711.6 | AF54: 3.5 | AK54: 35 | AQ54: 65 | AW54: 240.66 | BD54: 0.02 | BE54: 9 | BF54: 1.05 | BG54: 761.4 | BH54: 950.2
A55: 54 | C55: فاطمة أحمد فواز خلف الله عثمان علي | D55: 28004262500242 | E55: 274 | I55: 354.84 | J55: 1145.97 | K55: 80.22 | L55: 80.22 | N55: 1306.41 | Q55: 21 | R55: 100 | U55: 11 | X55: 5.58 | Y55: 137.58 | Z55: 989.15 | AA55: 989.15 | AB55: 9.89 | AC55: 148.37 | AD55: 29.67 | AE55: 1706.45 | AF55: 3.55 | AG55: 5.19 | AJ55: 116.6 | AK55: 35 | AQ55: 43.6 | AV55: 20 | BD55: 0.02 | BE55: 8.85 | BF55: 0.64 | BG55: 650.85 | BH55: 1055.6
A56: 55 | C56: فاطمه حسانين احمد محمد | D56: 28603178800223 | E56: 266 | I56: 344.48 | J56: 1145.17 | K56: 80.16 | L56: 80.16 | N56: 1305.49 | Q56: 21 | R56: 50 | X56: 5.54 | Y56: 76.54 | Z56: 987.55 | AA56: 987.55 | AB56: 9.88 | AC56: 148.13 | AD56: 29.63 | AE56: 1642 | AF56: 3.44 | AS56: 50 | BD56: 0.04 | BE56: 8.7 | BF56: 0.24 | BG56: 475.8 | BH56: 1166.2
A57: 56 | C57: ليلى محمد فرحان أحمد | D57: 28612082503685 | E57: 260 | I57: 336.71 | J57: 1096.17 | K57: 76.73 | L57: 76.73 | N57: 1249.63 | Q57: 14.4 | R57: 50 | S57: 19.2 | X57: 5.47 | Y57: 89.07 | Z57: 951.99 | AA57: 951.99 | AB57: 9.52 | AC57: 142.8 | AD57: 28.56 | AE57: 1590.29 | AF57: 3.37 | AL57: 1 | BD57: 0.04 | BE57: 8.45 | BG57: 412.94 | BH57: 1177.35
A58: 57 | C58: محمد أحمد رضى محمود محمد عبد المنعم | D58: 28508292500032 | E58: 252 | F58: 209.09 | I58: 326.35 | J58: 1025.45 | K58: 71.78 | L58: 71.78 | N58: 1169.01 | Q58: 14.4 | R58: 50 | T58: 14.4 | X58: 5.1 | Y58: 292.99 | Z58: 1085.65 | AA58: 1085.65 | AB58: 10.86 | AC58: 162.85 | AD58: 32.57 | AE58: 1736.81 | AF58: 3.26 | AZ58: 38.5 | BE58: 9.25 | BF58: 1.79 | BG58: 489.46 | BH58: 1247.35
A59: 58 | C59: محمد احمد عبد العال عبد السلام | D59: 28109172500291 | E59: 260 | F59: 219.37 | I59: 336.71 | J59: 1096.17 | K59: 76.73 | L59: 76.73 | N59: 1249.63 | Q59: 14.4 | R59: 50 | X59: 5.47 | Y59: 289.24 | Z59: 1152.16 | AA59: 1152.16 | AB59: 11.52 | AC59: 172.82 | AD59: 34.56 | AE59: 1828.48 | AF59: 3.37 | BD59: 0.04 | BE59: 9.75 | BF59: 3.15 | BG59: 476.43 | BH59: 1352.05
A60: 59 | C60: محمد حسنى نفادى أحمد | D60: 28801012517392 | E60: 254 | F60: 213.75 | I60: 328.94 | J60: 1080.34 | K60: 75.62 | L60: 75.62 | N60: 1231.58 | Q60: 14.4 | R60: 100 | X60: 5.45 | Y60: 333.6 | Z60: 1136.24 | AA60: 1136.24 | AB60: 11.36 | AC60: 170.44 | AD60: 34.09 | AE60: 1850.15 | AF60: 3.29 | BD60: 0.03 | BE60: 10 | BF60: 3.72 | BG60: 469.75 | BH60: 1380.4
A61: 60 | C61: محمد فتحي محمود فرج | D61: 28301222500171 | E61: 260 | I61: 336.71 | J61: 1096.17 | K61: 76.73 | L61: 76.73 | N61: 1249.63 | Q61: 14.4 | R61: 50 | X61: 5.47 | Y61: 69.87 | Z61: 932.79 | AA61: 932.79 | AB61: 9.33 | AC61: 139.92 | AD61: 27.98 | AE61: 1567.44 | AF61: 3.37 | AG61: 5.11 | AJ61: 116.7 | AL61: 1 | AO61: 2 | AP61: 1 | AQ61: 60 | BD61: 0.04 | BE61: 8.25 | BG61: 591.79 | BH61: 975.65
A62: 61 | C62: محمد كمال الدين عبد العال مرسى | D62: 28309102500411 | E62: 255 | F62: 203.59 | I62: 330.23 | J62: 1032.52 | K62: 72.28 | L62: 72.28 | N62: 1177.08 | Q62: 14.4 | R62: 145 | X62: 5.14 | Y62: 368.13 | Z62: 1069.98 | AA62: 1069.98 | AB62: 10.7 | AC62: 160.5 | AD62: 32.1 | AE62: 1817.85 | AF62: 3.3 | BD62: 0.01 | BE62: 9.9 | BF62: 3.47 | BG62: 449.95 | BH62: 1367.9
A63: 62 | C63: محمد محمود محمد قاسم | D63: 28409242500254 | E63: 260 | I63: 336.71 | J63: 1096.17 | K63: 76.73 | L63: 76.73 | N63: 1249.63 | Q63: 14.4 | R63: 50 | X63: 5.47 | Y63: 69.87 | Z63: 932.79 | AA63: 932.79 | AB63: 9.33 | AC63: 139.92 | AD63: 27.98 | AE63: 1567.44 | AF63: 3.37 | BE63: 8.3 | BG63: 405.99 | BH63: 1161.45
A64: 63 | C64: محمود سيد توفيق سيد | D64: 28604012504878 | E64: 260 | I64: 336.71 | J64: 1096.17 | K64: 76.73 | L64: 76.73 | N64: 1249.63 | Q64: 14.4 | R64: 145 | X64: 5.47 | Y64: 164.87 | Z64: 932.79 | AA64: 932.79 | AB64: 9.33 | AC64: 139.92 | AD64: 27.98 | AE64: 1662.44 | AF64: 3.37 | AJ64: 81.7 | BD64: 0.04 | BE64: 9 | BF64: 1.16 | BG64: 489.59 | BH64: 1172.85
A65: 64 | C65: محمود محمد عبد العال احمد | D65: 28602042500319 | E65: 256 | I65: 331.53 | J65: 1056.81 | K65: 73.98 | L65: 73.98 | N65: 1204.77 | Q65: 14.4 | R65: 50 | X65: 5.26 | Y65: 69.66 | Z65: 892.9 | AA65: 892.9 | AB65: 8.93 | AC65: 133.94 | AD65: 26.79 | AE65: 1513.72 | AF65: 3.32 | BD65: 0.04 | BE65: 8 | BG65: 391.97 | BH65: 1121.75
A66: 65 | C66: مرفت فؤاد حنين أرمانيوس | D66: 27804112500107 | E66: 419.47 | I66: 543.23 | J66: 1559.79 | K66: 109.19 | L66: 109.19 | N66: 1778.17 | Q66: 21 | R66: 50 | W66: 188.74 | X66: 56.73 | Y66: 316.47 | Z66: 1501.41 | AA66: 1501.41 | AB66: 15.01 | AC66: 225.21 | AD66: 45.04 | AE66: 2493.97 | AF66: 5.43 | AS66: 50 | BA66: 3 | BB66: 27.46 | BD66: 0.02 | BE66: 13.4 | BF66: 12.71 | BG66: 747.12 | BH66: 1746.85
A67: 66 | C67: مروة مجدى عبد الحافظ سيد | D67: 28607162500063 | E67: 260 | I67: 336.71 | J67: 1096.17 | K67: 76.73 | L67: 76.73 | N67: 1249.63 | Q67: 14.4 | R67: 50 | X67: 5.47 | Y67: 69.87 | Z67: 932.79 | AA67: 932.79 | AB67: 9.33 | AC67: 139.92 | AD67: 27.98 | AE67: 1567.44 | AF67: 3.37 | AK67: 35 | BE67: 8.05 | BG67: 440.74 | BH67: 1126.7
A68: 67 | C68: مروة محمد على محمد | D68: 28501142500382 | E68: 260 | I68: 336.71 | J68: 1096.17 | K68: 76.73 | L68: 76.73 | N68: 1249.63 | Q68: 14.4 | R68: 50 | X68: 5.47 | Y68: 69.87 | Z68: 932.79 | AA68: 932.79 | AB68: 9.33 | AC68: 139.92 | AD68: 27.98 | AE68: 1567.44 | AF68: 3.37 | AJ68: 56.25 | AK68: 35 | BE68: 8.05 | BG68: 496.99 | BH68: 1070.45
A69: 68 | C69: مصطفى صلاح الدين سيد عبد الرحمن | D69: 28201032504214 | E69: 274 | I69: 354.84 | J69: 1145.97 | K69: 80.22 | L69: 80.22 | N69: 1306.41 | Q69: 21 | R69: 100 | X69: 5.58 | Y69: 126.58 | Z69: 978.15 | AA69: 978.15 | AB69: 9.78 | AC69: 146.72 | AD69: 29.34 | AE69: 1693.36 | AF69: 3.55 | AT69: 3 | BD69: 0.03 | BE69: 9.05 | BF69: 1.24 | BG69: 430.96 | BH69: 1262.4
A70: 69 | C70: مصطفى عيد سيد محمد | D70: 28403242500051 | E70: 263 | I70: 340.59 | J70: 1104.1 | K70: 77.29 | L70: 77.29 | N70: 1258.68 | Q70: 14.4 | R70: 50 | X70: 5.51 | Y70: 69.91 | Z70: 938 | AA70: 938 | AB70: 9.38 | AC70: 140.7 | AD70: 28.14 | AE70: 1578.34 | AF70: 3.41 | BD70: 0.02 | BE70: 8.35 | BG70: 408.99 | BH70: 1169.35
A71: 70 | C71: منى قاسم أحمد على | D71: 27807022501821 | E71: 280 | I71: 362.61 | J71: 1203.27 | K71: 84.23 | L71: 84.23 | N71: 1371.73 | Q71: 21 | R71: 95 | W71: 34.42 | X71: 5.82 | Y71: 156.24 | Z71: 1070.36 | AA71: 1070.36 | AB71: 10.7 | AC71: 160.55 | AD71: 32.11 | AE71: 1807.48 | AF71: 3.63 | AG71: 8.44 | AX71: 115.03 | BE71: 9.6 | BF71: 2.74 | BG71: 583.83 | BH71: 1223.65
A72: 71 | C72: مها مراد احمد شوكت | D72: 28409202500227 | E72: 260 | I72: 336.71 | J72: 712.51 | K72: 49.87 | L72: 49.87 | N72: 812.25 | Q72: 9.36 | R72: 50 | X72: 3.56 | Y72: 62.92 | Z72: 932.79 | AA72: 932.79 | AB72: 9.33 | AC72: 139.92 | AD72: 27.98 | AE72: 1123.11 | AF72: 3.37 | AL72: 1 | AS72: 50 | BD72: 0.02 | BE72: 4.7 | BG72: 453.41 | BH72: 669.7
A73: 72 | C73: ناهد عبد الموجود محمود | D73: 28003102503168 | E73: 255 | I73: 330.23 | J73: 1032.52 | K73: 72.28 | L73: 72.28 | N73: 1177.08 | Q73: 14.4 | R73: 50 | X73: 5.14 | Y73: 69.54 | Z73: 866.39 | AA73: 866.39 | AB73: 8.66 | AC73: 129.96 | AD73: 25.99 | AE73: 1480.57 | AF73: 3.3 | AG73: 60 | BD73: 0.04 | BE73: 7.4 | BG73: 442.92 | BH73: 1037.65
A74: 73 | C74: نجلاء احمد دياب سلامة | D74: 27806222500083 | E74: 283 | I74: 366.49 | J74: 1145.97 | K74: 80.22 | L74: 80.22 | N74: 1306.41 | Q74: 21 | R74: 50 | W74: 19.74 | X74: 5.69 | Y74: 96.43 | Z74: 986.35 | AA74: 986.35 | AB74: 9.86 | AC74: 147.95 | AD74: 29.59 | AE74: 1667.19 | AF74: 3.66 | AK74: 35 | BD74: 0.04 | BE74: 8.55 | BG74: 467.74 | BH74: 1199.45
A75: 74 | C75: نجوان رضا محمد عمر | D75: 27512112500165 | E75: 288 | I75: 372.97 | J75: 1145.97 | K75: 80.22 | L75: 80.22 | N75: 1306.41 | Q75: 21 | R75: 150 | W75: 61.68 | X75: 5.92 | Y75: 238.6 | Z75: 1022.04 | AA75: 1022.04 | AB75: 10.22 | AC75: 153.31 | AD75: 30.66 | AE75: 1817.53 | AF75: 3.73 | AG75: 5.52 | BD75: 0.04 | BE75: 9.8 | BF75: 3.21 | BG75: 455.73 | BH75: 1361.8
A76: 75 | C76: نجوى إبراهيم عبد العال مهران | D76: 28108052500126 | E76: 275 | I76: 356.13 | J76: 1158.02 | K76: 81.06 | L76: 81.06 | N76: 1320.14 | Q76: 21 | R76: 50 | W76: 5.25 | X76: 5.7 | Y76: 81.95 | Z76: 995.96 | AA76: 995.96 | AB76: 9.96 | AC76: 149.39 | AD76: 29.88 | AE76: 1666.1 | AF76: 3.56 | AG76: 2.53 | AQ76: 37.45 | AS76: 50 | BD76: 0.01 | BE76: 8.8 | BF76: 0.54 | BG76: 522.75 | BH76: 1143.35
A77: 76 | C77: نجوى عزت عبد المجيد القرنى | D77: 26701012500404 | E77: 278 | I77: 360.02 | J77: 1203.27 | K77: 84.23 | L77: 84.23 | N77: 1371.73 | Q77: 21 | R77: 50 | W77: 2.69 | X77: 5.63 | Y77: 79.32 | Z77: 1041.03 | AA77: 1041.03 | AB77: 10.41 | AC77: 156.15 | AD77: 31.23 | AE77: 1724.44 | AF77: 3.6 | AG77: 29.76 | AO77: 2 | AP77: 1 | BD77: 0.02 | BE77: 8.9 | BF77: 0.86 | BG77: 480.84 | BH77: 1243.6
A78: 77 | C78: نهال محمد عصمت محمد بيومى | D78: 28409082500082 | E78: 274 | I78: 354.84 | J78: 744.88 | K78: 52.14 | L78: 52.14 | N78: 849.16 | Q78: 13.65 | R78: 95 | X78: 3.63 | Y78: 112.28 | Z78: 978.15 | AA78: 978.15 | AB78: 9.78 | AC78: 146.72 | AD78: 29.34 | AE78: 1221.81 | AF78: 3.55 | AK78: 35 | AO78: 2 | AP78: 1 | BD78: 0.02 | BE78: 4.95 | BG78: 460.61 | BH78: 761.2
A79: 78 | C79: نهى عثمان عبدالحافظ ابراهيم | D79: 28310112500426 | E79: 246 | G79: 100 | I79: 318.58 | J79: 1011.29 | K79: 70.79 | L79: 70.79 | N79: 1152.87 | Q79: 14.4 | R79: 50 | X79: 5.08 | Y79: 169.48 | Z79: 953.77 | AA79: 953.77 | AB79: 9.54 | AC79: 143.07 | AD79: 28.61 | AE79: 1570.48 | AF79: 3.19 | AH79: 216.5 | BB79: 54.92 | BE79: 6.25 | BG79: 675.33 | BH79: 895.15
A80: 79 | C80: نهى فتحى محمد الصغير | D80: 28712152500268 | E80: 255 | I80: 330.23 | J80: 961.72 | K80: 67.32 | L80: 67.32 | N80: 1096.36 | Q80: 14.4 | R80: 50 | V80: 14.4 | X80: 5.14 | Y80: 83.94 | Z80: 800.07 | AA80: 800.07 | AB80: 8 | AC80: 120.01 | AD80: 24 | AE80: 1401.65 | AF80: 3.3 | BD80: 0.01 | BE80: 7.4 | BG80: 363 | BH80: 1038.65
A81: 80 | C81: نهى محمد عفيفى محمود | D81: 28708232500181 | E81: 255 | F81: 213.02 | I81: 330.23 | J81: 1032.52 | K81: 72.28 | L81: 72.28 | N81: 1177.08 | Q81: 14.4 | R81: 50 | X81: 5.14 | Y81: 282.56 | Z81: 1079.41 | AA81: 1079.41 | AB81: 10.79 | AC81: 161.91 | AD81: 32.38 | AE81: 1734.06 | AF81: 3.3 | AK81: 35 | AL81: 1 | AO81: 2 | AP81: 1 | BD81: 0.03 | BE81: 9 | BF81: 1.05 | BG81: 488.46 | BH81: 1245.6
A82: 81 | C82: نهى محمد نبيل كامل محمود | D82: 28309202500125 | E82: 275 | I82: 356.13 | J82: 1158.02 | K82: 81.06 | L82: 81.06 | N82: 1320.14 | Q82: 21 | R82: 140 | W82: 5.25 | X82: 5.7 | Y82: 171.95 | Z82: 995.96 | AA82: 995.96 | AB82: 9.96 | AC82: 149.39 | AD82: 29.88 | AE82: 1756.1 | AF82: 3.56 | BD82: 0.01 | BE82: 9.5 | BF82: 2.37 | BG82: 435.3 | BH82: 1320.8
A83: 82 | C83: نيفين عبد اللاه محمد عبد الرحيم | D83: 28204210100288 | E83: 263 | I83: 340.59 | J83: 1159.31 | K83: 81.15 | L83: 81.15 | N83: 1321.61 | Q83: 19.2 | X83: 5.51 | Y83: 24.71 | Z83: 1005.73 | AA83: 1005.73 | AB83: 10.06 | AC83: 150.86 | AD83: 30.17 | AE83: 1608.94 | AF83: 3.41 | AK83: 35 | BE83: 8.15 | BG83: 464.09 | BH83: 1144.85
A84: 83 | C84: هاله علي الدين محمود سيد | D84: 28707172500121 | E84: 260 | I84: 336.71 | J84: 1096.17 | K84: 76.73 | L84: 76.73 | N84: 1249.63 | Q84: 14.4 | R84: 50 | X84: 5.47 | Y84: 69.87 | Z84: 932.79 | AA84: 932.79 | AB84: 9.33 | AC84: 139.92 | AD84: 27.98 | AE84: 1567.44 | AF84: 3.37 | AS84: 60 | BE84: 8.3 | BG84: 465.99 | BH84: 1101.45
A85: 84 | C85: ولاء عبد الناصر حسين أحمد | D85: 28703202500168 | E85: 260 | I85: 336.71 | J85: 1096.17 | K85: 76.73 | L85: 76.73 | N85: 1249.63 | Q85: 14.4 | R85: 50 | X85: 5.47 | Y85: 69.87 | Z85: 932.79 | AA85: 932.79 | AB85: 9.33 | AC85: 139.92 | AD85: 27.98 | AE85: 1567.44 | AF85: 3.37 | BE85: 8.3 | BG85: 405.99 | BH85: 1161.45
A86: 85 | C86: ياسمين محمد رفعت محمد | D86: 28607202503745 | E86: 260 | I86: 336.71 | J86: 1096.17 | K86: 76.73 | L86: 76.73 | N86: 1249.63 | Q86: 14.4 | R86: 50 | X86: 5.47 | Y86: 69.87 | Z86: 932.79 | AA86: 932.79 | AB86: 9.33 | AC86: 139.92 | AD86: 27.98 | AE86: 1567.44 | AF86: 3.37 | AK86: 35 | BE86: 8.05 | BG86: 440.74 | BH86: 1126.7

Sheet الفرز النهائي بعد التجميع (2) (hidden)
A1: إسم الموظف | B1: م | C1: أساسى المكافأة | D1: المكافأة | E1: المتغير الخاضع للمعاش | F1: حصة الحكومة فى التأمين ٣.٠ % | G1: حصة الموظف ١٠.٠ % | H1: حصة الموظف فى التأمين ١.٠ % | I1: د. العادية | J1: الضريبة الموحدة | K1: إيرادات | L1: الصافى | M1: الرقم القومى | N1: اسم المكافاة
A3: ابو بكر جلال علي عبد الحافظ | B3: 1 | C3: 259 | D3: 195 | E3: 195 | F3: 5.85 | G3: 19.5 | H3: 1.95 | I3: 0.75 | J3: 2.59 | K3: 0.01 | L3: 170.2 | M3: 28310092500254 | N3: المولد النبوي الشريف 2018
A4: ابو بكر جلال علي عبد الحافظ | B4: 1 | C4: 259 | D4: 195 | E4: 195 | F4: 5.85 | G4: 19.5 | H4: 1.95 | I4: 0.9 | J4: 1.1 | L4: 171.55 | M4: 28310092500254 | N4: عيد الاضحي المبارك 2018
A5: ابو بكر جلال علي عبد الحافظ | B5: 1 | C5: 259 | D5: 50.51 | E5: 50.51 | F5: 1.52 | G5: 5.05 | H5: 0.51 | L5: 44.95 | M5: 28310092500254 | N5: صندوق 10 أيام 2018
A6: ابو بكر جلال علي عبد الحافظ | B6: 1 | C6: 259 | D6: 58.5 | E6: 58.5 | F6: 1.75 | G6: 5.85 | H6: 0.58 | I6: 0.05 | K6: 0.02 | L6: 52 | M6: 28310092500254 | N6: الجهد الغير عادي أكتوبر 2018
A7: ابو بكر جلال علي عبد الحافظ | B7: 1 | C7: 259 | D7: 90 | E7: 90 | F7: 2.7 | G7: 9 | H7: 0.9 | I7: 0.2 | J7: 1.19 | K7: 0.01 | L7: 78.7 | M7: 28310092500254 | N7: احافز إضافي نوفمبر 2018
A8: ابو بكر جلال علي عبد الحافظ | B8: 1 | C8: 259 | D8: 116.16 | E8: 116.16 | F8: 3.48 | G8: 11.62 | H8: 1.16 | I8: 0.4 | K8: 0.03 | L8: 102.95 | M8: 28310092500254 | N8: امتحانات تخلفات ستمبر 2018
A9: ابو بكر جلال علي عبد الحافظ | B9: 1 | C9: 259 | D9: 90 | E9: 90 | F9: 2.7 | G9: 9 | H9: 0.9 | I9: 0.2 | J9: 1.19 | K9: 0.01 | L9: 78.7 | M9: 28602012504786 | N9: إضافي ديسمبر 2018
A10: ابو بكر جلال علي عبد الحافظ | B10: 1 | C10: 259 | D10: 58.5 | E10: 58.5 | F10: 1.75 | G10: 5.85 | H10: 0.58 | I10: 0.05 | K10: 0.01 | L10: 52.01 | M10: 28310092500254 | N10: إضافي سبعة 2018
D11: =SUM(D3:D10) -> 853.67 | E11: =SUM(E3:E10) -> 853.67 | F11: 25.6 | G11: 85.37 | H11: 8.53 | I11: 2.55 | J11: 6.07 | K11: 0.09 | L11: 751.06
A12: ازهار محمد خالد احمد | B12: 2 | C12: 256 | D12: 300 | E12: 300 | F12: 9 | G12: 30 | H12: 3 | I12: 1.45 | J12: 3.98 | K12: 0.02 | L12: 261.55 | M12: 28602012504786 | N12: المولد النبوي الشريف2018
A13: ازهار محمد خالد احمد | B13: 2 | C13: 256 | D13: 90 | E13: 90 | F13: 2.7 | G13: 9 | H13: 0.9 | I13: 0.2 | J13: 1.19 | K13: 0.01 | L13: 78.7 | M13: 28602012504786 | N13: احافز إضافي نوفمبر 2018
A14: ازهار محمد خالد احمد | B14: 2 | C14: 256 | D14: 90 | E14: 90 | F14: 2.7 | G14: 9 | H14: 0.9 | I14: 0.2 | J14: 1.19 | K14: 0.01 | L14: 78.7 | M14: 28301132500091 | N14: إضافي ديسمبر 2018
D15: =SUM(D12:D14) -> 480 | E15: =SUM(E12:E14) -> 480 | F15: 14.4 | G15: 48 | H15: 4.8 | I15: 1.85 | J15: 6.36 | K15: 0.04 | L15: 418.95
A16: اسامة مصطفى محمد عبد الرحمن | B16: 3 | C16: 260 | D16: 300 | E16: 300 | F16: 9 | G16: 30 | H16: 3 | I16: 1.45 | J16: 3.98 | K16: 0.02 | L16: 261.55 | M16: 28301132500091 | N16: المولد النبوي الشريف 2018
A17: اسامة مصطفى محمد عبد الرحمن | B17: 2 | C17: 260 | D17: 300 | E17: 300 | F17: 9 | G17: 30 | H17: 3 | I17: 1.65 | J17: 3.97 | K17: 0.03 | L17: 261.35 | M17: 28301132500091 | N17: عيد الاضحي المبارك 2018
A18: اسامة مصطفى محمد عبد الرحمن | B18: 2 | C18: 260 | D18: 78 | E18: 78 | F18: 2.34 | G18: 7.8 | H18: 0.78 | I18: 0.2 | J18: 1.03 | K18: 0.04 | L18: 68.15 | M18: 28301132500091 | N18: صندوق 10 أيام 2018
A19: اسامة مصطفى محمد عبد الرحمن | B19: 2 | C19: 260 | D19: 90 | E19: 90 | F19: 2.7 | G19: 9 | H19: 0.9 | I19: 0.2 | J19: 1.19 | K19: 0.01 | L19: 78.7 | M19: 28301132500091 | N19: الجهد الغير عادي أكتوبر 2018
A20: اسامة مصطفى محمد عبد الرحمن | B20: 3 | C20: 260 | D20: 90 | E20: 90 | F20: 2.7 | G20: 9 | H20: 0.9 | I20: 0.2 | J20: 1.19 | K20: 0.01 | L20: 78.7 | M20: 28301132500091 | N20: احافز إضافي نوفمبر 2018
A21: اسامة مصطفى محمد عبد الرحمن | B21: 2 | C21: 260 | D21: 179.4 | E21: 179.4 | F21: 5.38 | G21: 17.94 | H21: 1.79 | I21: 0.8 | J21: 2.38 | K21: 0.04 | L21: 156.45 | M21: 28301132500091 | N21: امتحانات تخلفات ستمبر 2018
A22: اسامة مصطفى محمد عبد الرحمن | B22: 3 | C22: 260 | D22: 90 | E22: 90 | F22: 2.85 | G22: 9.5 | H22: 0.95 | I22: 0.25 | J22: 1.26 | K22: 0.01 | L22: 83 | M22: 28606128800361 | N22: إضافي ديسمبر 2018
A23: اسامة مصطفى محمد عبد الرحمن | B23: 1 | C23: 260 | D23: 90 | E23: 90 | F23: 2.7 | G23: 9 | H23: 0.9 | I23: 0.25 | J23: 1.19 | K23: 0.01 | L23: 78.65 | M23: 28301132500091 | N23: إضافي أغسطس 2018
A24: اسامة مصطفى محمد عبد الرحمن | B24: 2 | C24: 260 | D24: 90 | E24: 90 | F24: 2.7 | G24: 9 | H24: 0.9 | I24: 0.25 | J24: 1.19 | K24: 0.01 | L24: 78.65 | M24: 28301132500091 | N24: إضافي سبعة 2018
D25: =SUM(D16:D24) -> 1307.4 | E25: =SUM(E16:E24) -> 1307.4 | F25: 39.37 | G25: 131.24 | H25: 13.12 | I25: 5.25 | J25: 17.38 | K25: 0.18 | L25: 1145.2
A26: اسامه عبد النعيم عاصم محمد | B26: 4 | C26: 276 | D26: 300 | E26: 300 | F26: 9 | G26: 30 | H26: 3 | I26: 1.45 | J26: 3.98 | K26: 0.02 | L26: 261.55 | M26: 27511172502659 | N26: المولد النبوي الشريف 2018
A27: اسامه عبد النعيم عاصم محمد | B27: 3 | C27: 276 | D27: 95 | E27: 95 | F27: 2.85 | G27: 9.5 | H27: 0.95 | I27: 0.25 | J27: 1.26 | K27: 0.04 | L27: 83 | M27: 27511172502659 | N27: الجهد الغير عادي أكتوبر 2018
A28: اسامه عبد النعيم عاصم محمد | B28: 3 | C28: 276 | D28: 190.44 | E28: 190.44 | F28: 5.71 | G28: 19.04 | H28: 1.9 | I28: 0.85 | J28: 2.52 | K28: 0.03 | L28: 166.1 | M28: 27511172502659 | N28: امتحانات تخلفات ستمبر 2018
A29: اسامه عبد النعيم عاصم محمد | B29: 2 | C29: 276 | D29: 95 | E29: 95 | F29: 2.85 | G29: 9.5 | H29: 0.95 | I29: 0.3 | J29: 1.26 | K29: 0.04 | L29: 82.95 | M29: 27511172502659 | N29: إضافي أغسطس 2018
D30: =SUM(D26:D29) -> 680.44 | E30: =SUM(E26:E29) -> 680.44 | F30: 20.41 | G30: 68.04 | H30: 6.8 | I30: 2.85 | J30: 9.02 | K30: 0.13 | L30: 593.6
A31: اسراء أسامة محمد طلبه | B31: 5 | C31: 266 | D31: 300 | E31: 300 | F31: 9 | G31: 30 | H31: 3 | I31: 1.45 | J31: 3.98 | K31: 0.02 | L31: 261.55 | M31: 28606128800361 | N31: المولد النبوي الشريف 2018
A32: اسراء أسامة محمد طلبه | B32: 3 | C32: 266 | D32: 300 | E32: 300 | F32: 9 | G32: 30 | H32: 3 | I32: 1.65 | J32: 3.97 | K32: 0.03 | L32: 261.35 | M32: 28606128800361 | N32: عيد الاضحي المبارك 2018
A33: اسراء أسامة محمد طلبه | B33: 3 | C33: 266 | D33: 79.8 | E33: 79.8 | F33: 2.39 | G33: 7.98 | H33: 0.8 | I33: 0.2 | J33: 1.06 | K33: 0.01 | L33: 69.75 | M33: 28606128800361 | N33: صندوق 10 أيام 2018
A34: اسراء أسامة محمد طلبه | B34: 4 | C34: 266 | D34: 95 | E34: 95 | F34: 2.85 | G34: 9.5 | H34: 0.95 | I34: 0.25 | J34: 1.26 | K34: 0.04 | L34: 83 | M34: 28606128800361 | N34: الجهد الغير عادي أكتوبر 2018
A35: اسراء أسامة محمد طلبه | B35: 4 | C35: 266 | D35: 95 | E35: 95 | F35: 2.85 | G35: 9.5 | H35: 0.95 | I35: 0.25 | J35: 1.26 | K35: 0.04 | L35: 83 | M35: 28606128800361 | N35: احافز إضافي نوفمبر 2018
A36: اسراء أسامة محمد طلبه | B36: 4 | C36: 266 | D36: 183.54 | E36: 183.54 | F36: 5.51 | G36: 18.35 | H36: 1.84 | I36: 0.8 | J36: 2.43 | K36: 0.02 | L36: 160.1 | M36: 28606128800361 | N36: امتحانات تخلفات ستمبر 2018
A37: اسراء أسامة محمد طلبه | B37: 4 | C37: 266 | D37: 95 | E37: 95 | F37: 2.85 | G37: 9.5 | H37: 0.95 | I37: 0.25 | J37: 1.26 | K37: 0.04 | L37: 83 | M37: 28312138800447 | N37: إضافي ديسمبر 2018
A38: اسراء أسامة محمد طلبه | B38: 3 | C38: 266 | D38: 95 | E38: 95 | F38: 2.85 | G38: 9.5 | H38: 0.95 | I38: 0.3 | J38: 1.26 | K38: 0.04 | L38: 82.95 | M38: 28606128800361 | N38: إضافي أغسطس 2018
A39: اسراء أسامة محمد طلبه | B39: 3 | C39: 266 | D39: 95 | E39: 95 | F39: 2.85 | G39: 9.5 | H39: 0.95 | I39: 0.3 | J39: 1.26 | K39: 0.04 | L39: 82.95 | M39: 28606128800361 | N39: إضافي سبعة 2018
D40: =SUM(D31:D39) -> 1338.34 | E40: =SUM(E31:E39) -> 1338.34 | F40: 40.15 | G40: 133.83 | H40: 13.39 | I40: 5.45 | J40: 17.74 | K40: 0.28 | L40: 1167.65
A41: اسماء ابو زيد فؤاد ابو زيد | B41: 4 | C41: 268 | D41: 300 | E41: 300 | F41: 9 | G41: 30 | H41: 3 | I41: 1.65 | J41: 3.98 | K41: 0.02 | L41: 261.35 | M41: 28312138800447 | N41: عيد الاضحي المبارك 2018
A42: اسماء ابو زيد فؤاد ابو زيد | B42: 4 | C42: 268 | D42: 80.4 | E42: 80.4 | F42: 2.41 | G42: 8.04 | H42: 0.8 | I42: 0.2 | J42: 1.07 | K42: 0.04 | L42: 70.25 | M42: 28312138800447 | N42: صندوق 10 أيام 2018
A43: اسماء ابو زيد فؤاد ابو زيد | B43: 5 | C43: 268 | D43: 95 | E43: 95 | F43: 2.85 | G43: 9.5 | H43: 0.95 | I43: 0.25 | J43: 1.26 | K43: 0.04 | L43: 83 | M43: 28312138800447 | N43: الجهد الغير عادي أكتوبر 2018
A44: اسماء ابو زيد فؤاد ابو زيد | B44: 5 | C44: 268 | D44: 95 | E44: 95 | F44: 2.85 | G44: 9.5 | H44: 0.95 | I44: 0.25 | J44: 1.26 | K44: 0.04 | L44: 83 | M44: 28312138800447 | N44: احافز إضافي نوفمبر 2018
A45: اسماء ابو زيد فؤاد ابو زيد | B45: 5 | C45: 268 | D45: 184.92 | E45: 184.92 | F45: 5.55 | G45: 18.49 | H45: 1.85 | I45: 0.85 | J45: 2.45 | K45: 0.03 | L45: 161.25 | M45: 28312138800447 | N45: امتحانات تخلفات ستمبر 2018
A46: اسماء ابو زيد فؤاد ابو زيد | B46: 5 | C46: 268 | D46: 95 | E46: 95 | F46: 2.7 | G46: 9 | H46: 0.9 | I46: 0.2 | J46: 1.19 | K46: 0.04 | L46: 78.7 | M46: 28611162500168 | N46: إضافي ديسمبر 2018
A47: اسماء ابو زيد فؤاد ابو زيد | B47: 4 | C47: 268 | D47: 95 | E47: 95 | F47: 2.85 | G47: 9.5 | H47: 0.95 | I47: 0.3 | J47: 1.26 | K47: 0.04 | L47: 82.95 | M47: 28312138800447 | N47: إضافي أغسطس 2018
A48: اسماء ابو زيد فؤاد ابو زيد | B48: 4 | C48: 268 | D48: 95 | E48: 95 | F48: 2.85 | G48: 9.5 | H48: 0.95 | I48: 0.3 | J48: 1.26 | K48: 0.04 | L48: 82.95 | M48: 28312138800447 | N48: إضافي سبعة 2018
D49: =SUM(D41:D48) -> 1040.32 | E49: =SUM(E41:E48) -> 1040.32 | F49: 31.06 | G49: 103.53 | H49: 10.35 | I49: 4 | J49: 13.73 | K49: 0.29 | L49: 903.45
A50: اسماء اسلام توفيق عبد المتجلى | B50: 7 | C50: 263 | D50: 300 | E50: 300 | F50: 9 | G50: 30 | H50: 3 | I50: 1.45 | J50: 3.98 | K50: 0.02 | L50: 261.55 | M50: 28611162500168 | N50: المولد النبوي الشريف 2018
A51: اسماء اسلام توفيق عبد المتجلى | B51: 5 | C51: 263 | D51: 300 | E51: 300 | F51: 9 | G51: 30 | H51: 3 | I51: 1.65 | J51: 3.97 | K51: 0.03 | L51: 261.35 | M51: 28611162500168 | N51: عيد الاضحي المبارك 2018
A52: اسماء اسلام توفيق عبد المتجلى | B52: 6 | C52: 263 | D52: 90 | E52: 90 | F52: 2.7 | G52: 9 | H52: 0.9 | I52: 0.2 | J52: 1.19 | K52: 0.01 | L52: 78.7 | M52: 28611162500168 | N52: الجهد الغير عادي أكتوبر 2018
A53: اسماء اسلام توفيق عبد المتجلى | B53: 6 | C53: 263 | D53: 90 | E53: 90 | F53: 2.7 | G53: 9 | H53: 0.9 | I53: 0.2 | J53: 1.19 | K53: 0.01 | L53: 78.7 | M53: 28611162500168 | N53: احافز إضافي نوفمبر 2018
A54: اسماء اسلام توفيق عبد المتجلى | B54: 1 | C54: 263 | D54: 175.11 | E54: 175.11 | F54: 5.25 | G54: 17.51 | H54: 1.75 | I54: 0.65 | J54: 2.32 | K54: 0.03 | L54: 152.85 | M54: 28611162500168 | N54: مكافاة تميز نوفمبر 2018
A55: اسماء اسلام توفيق عبد المتجلى | B55: 6 | C55: 263 | D55: 181.47 | E55: 181.47 | F55: 5.44 | G55: 18.15 | H55: 1.81 | I55: 0.8 | J55: 2.41 | L55: 158.3 | M55: 28611162500168 | N55: امتحانات تخلفات ستمبر 2018
A56: اسماء اسلام توفيق عبد المتجلى | B56: 6 | C56: 263 | D56: 90 | E56: 90 | F56: 2.7 | G56: 9 | H56: 0.9 | I56: 0.2 | J56: 1.19 | K56: 0.01 | L56: 78.7 | M56: 28712162500142 | N56: إضافي ديسمبر 2018
A57: اسماء اسلام توفيق عبد المتجلى | B57: 5 | C57: 263 | D57: 90 | E57: 90 | F57: 2.7 | G57: 9 | H57: 0.9 | I57: 0.25 | J57: 1.19 | K57: 0.01 | L57: 78.65 | M57: 28611162500168 | N57: إضافي أغسطس 2018
D58: =SUM(D50:D57) -> 1316.58 | E58: =SUM(E50:E57) -> 1316.58 | F58: 39.49 | G58: 131.66 | H58: 13.16 | I58: 5.4 | J58: 17.44 | K58: 0.12 | L58: 1148.8
A59: الشيماء نور الدين مطاوع عبد الحافظ | B59: 8 | C59: 260 | D59: 300 | E59: 300 | F59: 9 | G59: 30 | H59: 3 | I59: 1.45 | J59: 3.98 | K59: 0.02 | L59: 261.55 | M59: 28712162500142 | N59: المولد النبوي الشريف 2018
A60: الشيماء نور الدين مطاوع عبد الحافظ | B60: 6 | C60: 260 | D60: 300 | E60: 300 | F60: 9 | G60: 30 | H60: 3 | I60: 1.65 | J60: 3.98 | K60: 0.02 | L60: 261.35 | M60: 28712162500142 | N60: عيد الاضحي المبارك 2018
A61: الشيماء نور الدين مطاوع عبد الحافظ | B61: 5 | C61: 260 | D61: 78 | E61: 78 | F61: 2.34 | G61: 7.8 | H61: 0.78 | I61: 0.2 | J61: 1.03 | K61: 0.04 | L61: 68.15 | M61: 28712162500142 | N61: صندوق 10 أيام 2018
A62: الشيماء نور الدين مطاوع عبد الحافظ | B62: 7 | C62: 260 | D62: 90 | E62: 90 | F62: 2.7 | G62: 9 | H62: 0.9 | I62: 0.2 | J62: 1.19 | K62: 0.01 | L62: 78.7 | M62: 28712162500142 | N62: الجهد الغير عادي أكتوبر 2018
A63: الشيماء نور الدين مطاوع عبد الحافظ | B63: 7 | C63: 260 | D63: 90 | E63: 90 | F63: 2.7 | G63: 9 | H63: 0.9 | I63: 0.2 | J63: 1.19 | K63: 0.01 | L63: 78.7 | M63: 28712162500142 | N63: احافز إضافي نوفمبر 2018
A64: الشيماء نور الدين مطاوع عبد الحافظ | B64: 7 | C64: 260 | D64: 179.4 | E64: 179.4 | F64: 5.38 | G64: 17.94 | H64: 1.79 | I64: 0.8 | J64: 2.38 | K64: 0.04 | L64: 156.45 | M64: 28712162500142 | N64: امتحانات تخلفات ستمبر 2018
A65: الشيماء نور الدين مطاوع عبد الحافظ | B65: 7 | C65: 260 | D65: 90 | E65: 90 | F65: 2.85 | G65: 9.5 | H65: 0.95 | I65: 0.25 | J65: 1.26 | K65: 0.01 | L65: 83 | M65: 28510032502061 | N65: إضافي ديسمبر 2018
A66: الشيماء نور الدين مطاوع عبد الحافظ | B66: 6 | C66: 260 | D66: 90 | E66: 90 | F66: 2.7 | G66: 9 | H66: 0.9 | I66: 0.25 | J66: 1.19 | K66: 0.01 | L66: 78.65 | M66: 28712162500142 | N66: إضافي أغسطس 2018
A67: الشيماء نور الدين مطاوع عبد الحافظ | B67: 5 | C67: 260 | D67: 90 | E67: 90 | F67: 2.7 | G67: 9 | H67: 0.9 | I67: 0.25 | J67: 1.19 | K67: 0.01 | L67: 78.65 | M67: 28712162500142 | N67: إضافي سبعة 2018
D68: =SUM(D59:D67) -> 1307.4 | E68: =SUM(E59:E67) -> 1307.4 | F68: 39.37 | G68: 131.24 | H68: 13.12 | I68: 5.25 | J68: 17.39 | K68: 0.17 | L68: 1145.2
A69: امل محمد عبد المجيد تمام | B69: 9 | C69: 263 | D69: 300 | E69: 300 | F69: 9 | G69: 30 | H69: 3 | I69: 1.45 | J69: 3.98 | K69: 0.02 | L69: 261.55 | M69: 28510032502061 | N69: المولد النبوي الشريف 2018
A70: امل محمد عبد المجيد تمام | B70: 7 | C70: 263 | D70: 300 | E70: 300 | F70: 9 | G70: 30 | H70: 3 | I70: 1.65 | J70: 3.98 | K70: 0.02 | L70: 261.35 | M70: 28510032502061 | N70: عيد الاضحي المبارك 2018
A71: امل محمد عبد المجيد تمام | B71: 6 | C71: 263 | D71: 78.9 | E71: 78.9 | F71: 2.37 | G71: 7.89 | H71: 0.79 | I71: 0.2 | J71: 1.05 | K71: 0.02 | L71: 68.95 | M71: 28510032502061 | N71: صندوق 10 أيام 2018
A72: امل محمد عبد المجيد تمام | B72: 8 | C72: 263 | D72: 95 | E72: 95 | F72: 2.85 | G72: 9.5 | H72: 0.95 | I72: 0.25 | J72: 1.26 | K72: 0.04 | L72: 83 | M72: 28510032502061 | N72: الجهد الغير عادي أكتوبر 2018
A73: امل محمد عبد المجيد تمام | B73: 8 | C73: 263 | D73: 95 | E73: 95 | F73: 2.85 | G73: 9.5 | H73: 0.95 | I73: 0.25 | J73: 1.26 | K73: 0.04 | L73: 83 | M73: 28510032502061 | N73: احافز إضافي نوفمبر 2018
A74: امل محمد عبد المجيد تمام | B74: 8 | C74: 263 | D74: 181.47 | E74: 181.47 | F74: 5.44 | G74: 18.15 | H74: 1.81 | I74: 0.8 | J74: 2.41 | L74: 158.3 | M74: 28510032502061 | N74: امتحانات تخلفات ستمبر 2018
A75: امل محمد عبد المجيد تمام | B75: 8 | C75: 263 | D75: 95 | E75: 95 | F75: 2.7 | G75: 9 | H75: 0.9 | I75: 0.2 | J75: 1.19 | K75: 0.04 | L75: 78.7 | M75: 28806242500229 | N75: إضافي ديسمبر 2018
A76: امل محمد عبد المجيد تمام | B76: 7 | C76: 263 | D76: 95 | E76: 95 | F76: 2.85 | G76: 9.5 | H76: 0.95 | I76: 0.3 | J76: 1.26 | K76: 0.04 | L76: 82.95 | M76: 28510032502061 | N76: إضافي أغسطس 2018
A77: امل محمد عبد المجيد تمام | B77: 6 | C77: 263 | D77: 95 | E77: 95 | F77: 2.85 | G77: 9.5 | H77: 0.95 | I77: 0.3 | J77: 1.26 | K77: 0.04 | L77: 82.95 | M77: 28510032502061 | N77: إضافي سبعة 2018
D78: =SUM(D69:D77) -> 1335.37 | E78: =SUM(E69:E77) -> 1335.37 | F78: 39.91 | G78: 133.04 | H78: 13.3 | I78: 5.4 | J78: 17.65 | K78: 0.26 | L78: 1160.75
A79: اميرة إسماعيل تهامى إسماعيل | B79: 10 | C79: 260 | D79: 300 | E79: 300 | F79: 9 | G79: 30 | H79: 3 | I79: 1.45 | J79: 3.98 | K79: 0.02 | L79: 261.55 | M79: 28806242500229 | N79: المولد النبوي الشريف 2018
A80: اميرة إسماعيل تهامى إسماعيل | B80: 8 | C80: 260 | D80: 300 | E80: 300 | F80: 9 | G80: 30 | H80: 3 | I80: 1.65 | J80: 3.98 | K80: 0.02 | L80: 261.35 | M80: 28806242500229 | N80: عيد الاضحي المبارك 2018
A81: اميرة إسماعيل تهامى إسماعيل | B81: 7 | C81: 260 | D81: 78 | E81: 78 | F81: 2.34 | G81: 7.8 | H81: 0.78 | I81: 0.2 | J81: 1.03 | K81: 0.04 | L81: 68.15 | M81: 28806242500229 | N81: صندوق 10 أيام 2018
A82: اميرة إسماعيل تهامى إسماعيل | B82: 9 | C82: 260 | D82: 90 | E82: 90 | F82: 2.7 | G82: 9 | H82: 0.9 | I82: 0.2 | J82: 1.19 | K82: 0.01 | L82: 78.7 | M82: 28806242500229 | N82: الجهد الغير عادي أكتوبر 2018
A83: اميرة إسماعيل تهامى إسماعيل | B83: 9 | C83: 260 | D83: 179.4 | E83: 179.4 | F83: 5.38 | G83: 17.94 | H83: 1.79 | I83: 0.8 | J83: 2.38 | K83: 0.04 | L83: 156.45 | M83: 28806242500229 | N83: امتحانات تخلفات ستمبر 2018
A84: اميرة إسماعيل تهامى إسماعيل | B84: 9 | C84: 260 | D84: 90 | E84: 90 | F84: 2.7 | G84: 9 | H84: 0.9 | I84: 0.2 | J84: 1.19 | K84: 0.01 | L84: 78.7 | M84: 28504252500204 | N84: إضافي ديسمبر 2018
A85: اميرة إسماعيل تهامى إسماعيل | B85: 8 | C85: 260 | D85: 90 | E85: 90 | F85: 2.7 | G85: 9 | H85: 0.9 | I85: 0.25 | J85: 1.19 | K85: 0.01 | L85: 78.65 | M85: 28806242500229 | N85: إضافي أغسطس 2018
A86: اميرة إسماعيل تهامى إسماعيل | B86: 7 | C86: 260 | D86: 90 | E86: 90 | F86: 2.7 | G86: 9 | H86: 0.9 | I86: 0.25 | J86: 1.19 | K86: 0.01 | L86: 78.65 | M86: 28806242500229 | N86: إضافي سبعة 2018
D87: =SUM(D79:D86) -> 1217.4 | E87: =SUM(E79:E86) -> 1217.4 | F87: 36.52 | G87: 121.74 | H87: 12.17 | I87: 5 | J87: 16.13 | K87: 0.16 | L87: 1062.2
A88: اميرة محمد عبد المعطى محمد | B88: 11 | C88: 232.5 | D88: 300 | E88: 300 | F88: 9 | G88: 30 | H88: 3 | I88: 1.45 | J88: 3.98 | K88: 0.02 | L88: 261.55 | M88: 28504252500204 | N88: المولد النبوي الشريف 2018
A89: اميرة محمد عبد المعطى محمد | B89: 9 | C89: 232.5 | D89: 300 | E89: 300 | F89: 9 | G89: 30 | H89: 3 | I89: 1.65 | J89: 3.97 | K89: 0.03 | L89: 261.35 | M89: 28504252500204 | N89: عيد الاضحي المبارك 2018
A90: اميرة محمد عبد المعطى محمد | B90: 8 | C90: 232.5 | D90: 69.75 | E90: 69.75 | F90: 2.09 | G90: 6.98 | H90: 0.7 | I90: 0.15 | J90: 0.92 | L90: 61 | M90: 28504252500204 | N90: صندوق 10 أيام 2018
A91: اميرة محمد عبد المعطى محمد | B91: 10 | C91: 232.5 | D91: 90 | E91: 90 | F91: 2.7 | G91: 9 | H91: 0.9 | I91: 0.2 | J91: 1.19 | K91: 0.01 | L91: 78.7 | M91: 28504252500204 | N91: الجهد الغير عادي أكتوبر 2018
A92: اميرة محمد عبد المعطى محمد | B92: 9 | C92: 232.5 | D92: 90 | E92: 90 | F92: 2.7 | G92: 9 | H92: 0.9 | I92: 0.2 | J92: 1.19 | K92: 0.01 | L92: 78.7 | M92: 28504252500204 | N92: احافز إضافي نوفمبر 2018
A93: اميرة محمد عبد المعطى محمد | B93: 10 | C93: 232.5 | D93: 160.42 | E93: 160.43 | F93: 4.81 | G93: 16.04 | H93: 1.6 | I93: 0.7 | J93: 2.13 | L93: 139.95 | M93: 28504252500204 | N93: امتحانات تخلفات ستمبر 2018
A94: اميرة محمد عبد المعطى محمد | B94: 10 | C94: 232.5 | D94: 90 | E94: 90 | F94: 2.7 | G94: 9 | H94: 0.9 | I94: 0.2 | J94: 1.19 | K94: 0.01 | L94: 78.7 | M94: 28604152500066 | N94: إضافي ديسمبر 2018
A95: اميرة محمد عبد المعطى محمد | B95: 9 | C95: 232.5 | D95: 90 | E95: 90 | F95: 2.7 | G95: 9 | H95: 0.9 | I95: 0.25 | J95: 1.19 | K95: 0.01 | L95: 78.65 | M95: 28504252500204 | N95: إضافي أغسطس 2018
A96: اميرة محمد عبد المعطى محمد | B96: 8 | C96: 232.5 | D96: 90 | E96: 90 | F96: 2.7 | G96: 9 | H96: 0.9 | I96: 0.25 | J96: 1.19 | K96: 0.01 | L96: 78.65 | M96: 28504252500204 | N96: إضافي سبعة 2018
D97: =SUM(D88:D96) -> 1280.17 | E97: =SUM(E88:E96) -> 1280.18 | F97: 38.4 | G97: 128.02 | H97: 12.8 | I97: 5.05 | J97: 16.95 | K97: 0.1 | L97: 1117.25
A98: اميره بدر توفيق حسن | B98: 12 | C98: 260 | D98: 300 | E98: 300 | F98: 9 | G98: 30 | H98: 3 | I98: 1.45 | J98: 3.98 | K98: 0.02 | L98: 261.55 | M98: 28604152500066 | N98: المولد النبوي الشريف 2018
A99: اميره بدر توفيق حسن | B99: 10 | C99: 260 | D99: 300 | E99: 300 | F99: 9 | G99: 30 | H99: 3 | I99: 1.65 | J99: 3.98 | K99: 0.02 | L99: 261.35 | M99: 28604152500066 | N99: عيد الاضحي المبارك 2018
A100: اميره بدر توفيق حسن | B100: 9 | C100: 260 | D100: 78 | E100: 78 | F100: 2.34 | G100: 7.8 | H100: 0.78 | I100: 0.2 | J100: 1.03 | K100: 0.04 | L100: 68.15 | M100: 28604152500066 | N100: صندوق 10 أيام 2018
A101: اميره بدر توفيق حسن | B101: 11 | C101: 260 | D101: 90 | E101: 90 | F101: 2.7 | G101: 9 | H101: 0.9 | I101: 0.2 | J101: 1.19 | K101: 0.01 | L101: 78.7 | M101: 28604152500066 | N101: الجهد الغير عادي أكتوبر 2018
A102: اميره بدر توفيق حسن | B102: 10 | C102: 260 | D102: 90 | E102: 90 | F102: 2.7 | G102: 9 | H102: 0.9 | I102: 0.2 | J102: 1.19 | K102: 0.01 | L102: 78.7 | M102: 28604152500066 | N102: احافز إضافي نوفمبر 2018
A103: اميره بدر توفيق حسن | B103: 1 | C103: 260 | D103: 249.51 | E103: 249.51 | F103: 7.49 | G103: 24.95 | H103: 2.5 | I103: 1.2 | J103: 3.31 | L103: 217.55 | M103: 28604152500066 | N103: جمع وعطلات يوليو 2018
A104: اميره بدر توفيق حسن | B104: 1 | C104: 260 | D104: 349.32 | E104: 349.32 | F104: 10.48 | G104: 34.93 | H104: 3.49 | I104: 1.95 | J104: 4.63 | K104: 0.02 | L104: 304.3 | M104: 28604152500066 | N104: جمع وعطلات أغسطس 2018
A105: اميره بدر توفيق حسن | B105: 1 | C105: 260 | D105: 257.83 | E105: 257.83 | F105: 7.73 | G105: 25.78 | H105: 2.58 | I105: 1.35 | J105: 3.42 | L105: 224.7 | M105: 28604152500066 | N105: جمع وعطلات ستمبر 2018
A106: اميره بدر توفيق حسن | B106: 1 | C106: 260 | D106: 199.61 | E106: 199.61 | F106: 5.99 | G106: 19.96 | H106: 2 | I106: 0.8 | J106: 2.65 | L106: 174.2 | M106: 28604152500066 | N106: جمع وعطلات اكتوبر 2018
A107: اميره بدر توفيق حسن | B107: 1 | C107: 260 | D107: 303.39 | E107: 303.39 | F107: 9.1 | G107: 30.34 | H107: 3.03 | I107: 1.45 | J107: 4.02 | L107: 264.55 | M107: 28604152500066 | N107: جمع وعطلات نوفمبر 2018
A108: اميره بدر توفيق حسن | B108: 11 | C108: 260 | D108: 179.4 | E108: 179.4 | F108: 5.38 | G108: 17.94 | H108: 1.79 | I108: 0.8 | J108: 2.38 | K108: 0.04 | L108: 156.45 | M108: 28604152500066 | N108: امتحانات تخلفات ستمبر 2018
A109: اميره بدر توفيق حسن | B109: 11 | C109: 260 | D109: 90 | E109: 90 | F109: 2.85 | G109: 9.5 | H109: 0.95 | I109: 0.25 | J109: 1.26 | K109: 0.01 | L109: 83 | M109: 28109162500128 | N109: إضافي ديسمبر 2018
A110: اميره بدر توفيق حسن | B110: 10 | C110: 260 | D110: 90 | E110: 90 | F110: 2.7 | G110: 9 | H110: 0.9 | I110: 0.25 | J110: 1.19 | K110: 0.01 | L110: 78.65 | M110: 28604152500066 | N110: إضافي أغسطس 2018
A111: اميره بدر توفيق حسن | B111: 1 | C111: 260 | D111: 199.61 | E111: 199.61 | F111: 5.99 | G111: 19.96 | H111: 2 | I111: 0.8 | J111: 2.65 | L111: 174.2 | M111: 28604152500066 | N111: مع وعطلات ديسمبر 2018
A112: اميره بدر توفيق حسن | B112: 9 | C112: 260 | D112: 90 | E112: 90 | F112: 2.7 | G112: 9 | H112: 0.9 | I112: 0.25 | J112: 1.19 | K112: 0.01 | L112: 78.65 | M112: 28604152500066 | N112: إضافي سبعة 2018
D113: =SUM(D98:D112) -> 2866.67 | E113: =SUM(E98:E112) -> 2866.67 | F113: 86.15 | G113: 287.16 | H113: 28.72 | I113: 12.8 | J113: 38.07 | K113: 0.19 | L113: 2504.7
A114: اميره محمد حنفي يوسف | B114: 13 | C114: 274 | D114: 300 | E114: 300 | F114: 9 | G114: 30 | H114: 3 | I114: 1.45 | J114: 3.98 | K114: 0.02 | L114: 261.55 | M114: 28109162500128 | N114: المولد النبوي الشريف 2018
A115: اميره محمد حنفي يوسف | B115: 11 | C115: 274 | D115: 300 | E115: 300 | F115: 9 | G115: 30 | H115: 3 | I115: 1.65 | J115: 3.98 | K115: 0.02 | L115: 261.35 | M115: 28109162500128 | N115: عيد الاضحي المبارك 2018
A116: اميره محمد حنفي يوسف | B116: 10 | C116: 274 | D116: 82.2 | E116: 82.2 | F116: 2.47 | G116: 8.22 | H116: 0.82 | I116: 0.15 | J116: 1.09 | K116: 0.02 | L116: 71.9 | M116: 28109162500128 | N116: صندوق 10 أيام 2018
A117: اميره محمد حنفي يوسف | B117: 12 | C117: 274 | D117: 95 | E117: 95 | F117: 2.85 | G117: 9.5 | H117: 0.95 | I117: 0.25 | J117: 1.26 | K117: 0.04 | L117: 83 | M117: 28109162500128 | N117: الجهد الغير عادي أكتوبر 2018
A118: اميره محمد حنفي يوسف | B118: 11 | C118: 274 | D118: 95 | E118: 95 | F118: 2.85 | G118: 9.5 | H118: 0.95 | I118: 0.25 | J118: 1.26 | K118: 0.04 | L118: 83 | M118: 28109162500128 | N118: احافز إضافي نوفمبر 2018
A119: اميره محمد حنفي يوسف | B119: 12 | C119: 274 | D119: 189.06 | E119: 189.06 | F119: 5.67 | G119: 18.91 | H119: 1.89 | I119: 0.85 | J119: 2.51 | L119: 164.9 | M119: 28109162500128 | N119: امتحانات تخلفات ستمبر 2018
A120: اميره محمد حنفي يوسف | B120: 12 | C120: 274 | D120: 95 | E120: 95 | I120: 0.3 | J120: 7.81 | K120: 0.04 | L120: 86.85 | M120: 27108062500783 | N120: إضافي ديسمبر 2018
A121: اميره محمد حنفي يوسف | B121: 11 | C121: 274 | D121: 95 | E121: 95 | F121: 2.85 | G121: 9.5 | H121: 0.95 | I121: 0.3 | J121: 1.26 | K121: 0.04 | L121: 82.95 | M121: 28109162500128 | N121: إضافي أغسطس 2018
A122: اميره محمد حنفي يوسف | B122: 10 | C122: 274 | D122: 95 | E122: 95 | F122: 2.85 | G122: 9.5 | H122: 0.95 | I122: 0.25 | J122: 1.26 | K122: 0.04 | L122: 83 | M122: 28109162500128 | N122: إضافي سبعة 2018
D123: =SUM(D114:D122) -> 1346.26 | E123: =SUM(E114:E122) -> 1346.26 | F123: 37.54 | G123: 125.13 | H123: 12.51 | I123: 5.45 | J123: 24.41 | K123: 0.26 | L123: 1178.5
A124: انعام احمد ابراهيم مهران | B124: 14 | C124: 452.58 | D124: 452.58 | I124: 2.65 | J124: 6.74 | K124: 0.04 | L124: 443.15 | M124: 27108062500783 | N124: المولد النبوي الشريف 2018
A125: انعام احمد ابراهيم مهران | B125: 12 | C125: 452.58 | D125: 452.58 | E125: 452.58 | F125: 13.58 | G125: 45.26 | H125: 4.53 | I125: 2.65 | J125: 6 | K125: 0.04 | L125: 394.1 | M125: 27108062500783 | N125: عيد الاضحي المبارك 2018
A126: انعام احمد ابراهيم مهران | B126: 11 | C126: 452.58 | D126: 135.77 | E126: 135.77 | F126: 4.07 | G126: 13.58 | H126: 1.36 | I126: 0.55 | J126: 7.42 | K126: 0.01 | L126: 112.85 | M126: 27108062500783 | N126: صندوق 10 أيام 2018
A127: انعام احمد ابراهيم مهران | B127: 13 | C127: 452.58 | D127: 95 | I127: 0.3 | J127: 7.81 | K127: 0.04 | L127: 86.85 | M127: 27108062500783 | N127: الجهد الغير عادي أكتوبر 2018
A128: انعام احمد ابراهيم مهران | B128: 12 | C128: 452.58 | D128: 95 | I128: 0.3 | J128: 17.51 | K128: 0.04 | L128: 77.15 | M128: 27108062500783 | N128: احافز إضافي نوفمبر 2018
A129: انعام احمد ابراهيم مهران | B129: 2 | C129: 452.58 | D129: 450 | I129: 2.6 | J129: 82.76 | K129: 0.04 | L129: 364.6 | M129: 27108062500783 | N129: مكافاة تميز نوفمبر 2018
A130: انعام احمد ابراهيم مهران | B130: 2 | C130: 452.58 | D130: 649.96 | E130: 649.96 | F130: 19.5 | G130: 65 | H130: 6.5 | I130: 4.2 | J130: 8.61 | L130: 565.65 | M130: 27108062500783 | N130: جمع وعطلات يوليو 2018
A131: انعام احمد ابراهيم مهران | B131: 2 | C131: 452.58 | D131: 324.98 | E131: 324.98 | F131: 9.75 | G131: 32.5 | H131: 3.25 | I131: 1.8 | J131: 21.26 | K131: 0.02 | L131: 266.15 | M131: 27108062500783 | N131: جمع وعطلات أغسطس 2018
A132: انعام احمد ابراهيم مهران | B132: 2 | C132: 452.58 | D132: 734.34 | E132: 0 | I132: 4.8 | J132: 58.18 | K132: 0.01 | L132: 671.35 | M132: 27108062500783 | N132: جمع وعطلات ستمبر2018
A133: انعام احمد ابراهيم مهران | B133: 2 | C133: 452.58 | D133: 799.48 | I133: 5.25 | J133: 50.63 | L133: 743.6 | M133: 27108062500783 | N133: جمع وعطلات اكتوبر 2018
A134: انعام احمد ابراهيم مهران | B134: 2 | C134: 452.58 | D134: 734.34 | I134: 4.8 | J134: 114.3 | K134: 0.04 | L134: 615.2 | M134: 27108062500783 | N134: جمع وعطلات نوفمبر 2018
A135: انعام احمد ابراهيم مهران | B135: 1 | C135: 452.58 | D135: 450 | I135: 2.6 | J135: 36.91 | K135: 0.04 | L135: 410.45 | M135: 27108062500783 | N135: حافز مخازن نوفمبر 2018
A136: انعام احمد ابراهيم مهران | B136: 13 | C136: 452.58 | D136: 312.28 | E136: 312.28 | F136: 9.37 | G136: 31.23 | H136: 3.12 | I136: 1.7 | J136: 4.14 | K136: 0.04 | L136: 272.05 | M136: 27108062500783 | N136: امتحانات تخلفات ستمبر 2018
A137: انعام احمد ابراهيم مهران | B137: 13 | C137: 452.58 | D137: 95 | F137: 2.85 | G137: 9.5 | H137: 0.95 | I137: 0.25 | J137: 1.26 | K137: 0.04 | L137: 83 | M137: 27412022500064 | N137: إضافي ديسمبر 2018
A138: انعام احمد ابراهيم مهران | B138: 12 | C138: 452.58 | D138: 95 | E138: 95 | F138: 2.85 | G138: 9.5 | H138: 0.95 | I138: 0.3 | J138: 6.95 | L138: 77.3 | M138: 27108062500783 | N138: إضافي أغسطس 2018
A139: انعام احمد ابراهيم مهران | B139: 2 | C139: 452.58 | D139: 710.65 | I139: 4.65 | J139: 44.77 | K139: 0.03 | L139: 661.2 | M139: 27108062500783 | N139: جمع وعطلات ديسمبر 2018
A140: انعام احمد ابراهيم مهران | B140: 11 | C140: 452.58 | D140: 95 | E140: 95 | F140: 2.85 | G140: 9.5 | H140: 0.95 | I140: 0.3 | J140: 1.26 | K140: 0.04 | L140: 82.95 | M140: 27108062500783 | N140: إضافي سبعة 2018
A141: انعام احمد ابراهيم مهران | B141: 1 | C141: 452.58 | D141: 450 | I141: 2.6 | J141: 36.91 | K141: 0.04 | L141: 410.45 | M141: 27108062500783 | N141: اعارا ت ومعاشات نوفمبر 2018
D142: =SUM(D124:D141) -> 7131.96 | E142: =SUM(E124:E141) -> 2065.57 | F142: 64.82 | G142: 216.07 | H142: 21.61 | I142: 42.3 | J142: 513.42 | K142: 0.51 | L142: 6338.05
A143: اوميمه جمال حلمى حسن | B143: 15 | C143: 283 | D143: 300 | E143: 300 | F143: 9 | G143: 30 | H143: 3 | I143: 1.45 | J143: 3.98 | K143: 0.02 | L143: 261.55 | M143: 27412022500064 | N143: المولد النبوي الشريف 2018
A144: اوميمه جمال حلمى حسن | B144: 13 | C144: 283 | D144: 300 | E144: 300 | F144: 9 | G144: 30 | H144: 3 | I144: 1.65 | J144: 3.98 | K144: 0.02 | L144: 261.35 | M144: 27412022500064 | N144: عيد الاضحي المبارك 2018
A145: اوميمه جمال حلمى حسن | B145: 12 | C145: 283 | D145: 84.9 | E145: 84.9 | F145: 2.55 | G145: 8.49 | H145: 0.85 | I145: 0.25 | J145: 1.12 | K145: 0.04 | L145: 74.15 | M145: 27412022500064 | N145: صندوق 10 أيام 2018
A146: اوميمه جمال حلمى حسن | B146: 14 | C146: 283 | D146: 95 | E146: 95 | F146: 2.85 | G146: 9.5 | H146: 0.95 | I146: 0.25 | J146: 1.26 | K146: 0.04 | L146: 83 | M146: 27412022500064 | N146: الجهد الغير عادي أكتوبر 2018
A147: اوميمه جمال حلمى حسن | B147: 13 | C147: 283 | D147: 95 | E147: 95 | F147: 2.85 | G147: 9.5 | H147: 0.95 | I147: 0.25 | J147: 1.26 | K147: 0.04 | L147: 83 | M147: 27412022500064 | N147: احافز إضافي نوفمبر 2018
A148: اوميمه جمال حلمى حسن | B148: 14 | C148: 283 | D148: 195.27 | E148: 195.27 | F148: 5.86 | G148: 19.53 | H148: 1.95 | I148: 0.9 | J148: 2.59 | L148: 170.3 | M148: 27412022500064 | N148: امتحانات تخلفات ستمبر 2018
A149: اوميمه جمال حلمى حسن | B149: 14 | C149: 283 | D149: 95 | E149: 95 | F149: 2.85 | G149: 9.5 | H149: 0.95 | I149: 0.25 | J149: 1.26 | K149: 0.04 | L149: 83 | M149: 27811202502229 | N149: إضافي ديسمبر 2018
A150: اوميمه جمال حلمى حسن | B150: 13 | C150: 283 | D150: 95 | E150: 95 | F150: 2.85 | G150: 9.5 | H150: 0.95 | I150: 0.3 | J150: 1.26 | K150: 0.04 | L150: 82.95 | M150: 27412022500064 | N150: إضافي أغسطس 2018
A151: اوميمه جمال حلمى حسن | B151: 12 | C151: 283 | D151: 95 | E151: 95 | F151: 2.85 | G151: 9.5 | H151: 0.95 | I151: 0.3 | J151: 1.26 | K151: 0.04 | L151: 82.95 | M151: 27412022500064 | N151: إضافي سبعة 2018
D152: =SUM(D143:D151) -> 1355.17 | E152: =SUM(E143:E151) -> 1355.17 | F152: 40.66 | G152: 135.52 | H152: 13.55 | I152: 5.6 | J152: 17.97 | K152: 0.28 | L152: 1182.25
A153: ايفيلين ربيل بطرس اسكاروس | B153: 16 | C153: 271 | D153: 300 | E153: 300 | F153: 9 | G153: 30 | H153: 3 | I153: 1.45 | J153: 3.98 | K153: 0.02 | L153: 261.55 | M153: 27811202502229 | N153: المولد النبوي الشريف 2018
A154: ايفيلين ربيل بطرس اسكاروس | B154: 14 | C154: 271 | D154: 300 | E154: 300 | F154: 9 | G154: 30 | H154: 3 | I154: 1.65 | J154: 3.97 | K154: 0.03 | L154: 261.35 | M154: 27811202502229 | N154: عيد الاضحي المبارك 2018
A155: ايفيلين ربيل بطرس اسكاروس | B155: 13 | C155: 271 | D155: 81.3 | E155: 81.3 | F155: 2.44 | G155: 8.13 | H155: 0.81 | I155: 0.2 | J155: 1.08 | K155: 0.03 | L155: 71.05 | M155: 27811202502229 | N155: صندوق 10 أيام 2018
A156: ايفيلين ربيل بطرس اسكاروس | B156: 15 | C156: 271 | D156: 95 | E156: 95 | F156: 2.85 | G156: 9.5 | H156: 0.95 | I156: 0.25 | J156: 1.26 | K156: 0.04 | L156: 83 | M156: 27811202502229 | N156: الجهد الغير عادي أكتوبر 2018
A157: ايفيلين ربيل بطرس اسكاروس | B157: 14 | C157: 271 | D157: 95 | E157: 95 | F157: 2.85 | G157: 9.5 | H157: 0.95 | I157: 0.25 | J157: 1.26 | K157: 0.04 | L157: 83 | M157: 27811202502229 | N157: احافز إضافي نوفمبر 2018
A158: ايفيلين ربيل بطرس اسكاروس | B158: 15 | C158: 271 | D158: 186.99 | E158: 186.99 | F158: 5.61 | G158: 18.7 | H158: 1.87 | I158: 0.85 | J158: 2.48 | K158: 0.04 | L158: 163.05 | M158: 27811202502229 | N158: امتحانات تخلفات ستمبر 2018
A159: ايفيلين ربيل بطرس اسكاروس | B159: 15 | C159: 271 | D159: 95 | E159: 95 | F159: 2.77 | G159: 9.24 | H159: 0.92 | I159: 0.25 | J159: 1.26 | K159: 0.04 | L159: 83.3 | M159: 28009172501861 | N159: إضافي ديسمبر 2018
A160: ايفيلين ربيل بطرس اسكاروس | B160: 14 | C160: 271 | D160: 95 | E160: 95 | F160: 2.85 | G160: 9.5 | H160: 0.95 | I160: 0.3 | J160: 1.26 | K160: 0.04 | L160: 82.95 | M160: 27811202502229 | N160: إضافي أغسطس 2018
A161: ايفيلين ربيل بطرس اسكاروس | B161: 13 | C161: 271 | D161: 95 | E161: 95 | F161: 2.85 | G161: 9.5 | H161: 0.95 | I161: 0.3 | J161: 1.26 | K161: 0.04 | L161: 82.95 | M161: 27811202502229 | N161: إضافي سبعة 2018
D162: =SUM(D153:D161) -> 1343.29 | E162: =SUM(E153:E161) -> 1343.29 | F162: 40.22 | G162: 134.07 | H162: 13.4 | I162: 5.5 | J162: 17.81 | K162: 0.32 | L162: 1172.2
A163: ايمان عبدالحميد عبد اللطيف | B163: 17 | C163: 278 | D163: 300 | E163: 300 | F163: 9 | G163: 30 | H163: 3 | I163: 1.45 | J163: 3.98 | K163: 0.02 | L163: 261.55 | M163: 28009172501861 | N163: المولد النبوي الشريف 2018
A164: ايمان عبدالحميد عبد اللطيف | B164: 15 | C164: 278 | D164: 300 | E164: 300 | F164: 9 | G164: 30 | H164: 3 | I164: 1.65 | J164: 3.97 | K164: 0.03 | L164: 261.35 | M164: 28009172501861 | N164: عيد الاضحي المبارك 2018
A165: ايمان عبدالحميد عبد اللطيف | B165: 14 | C165: 278 | D165: 83.4 | E165: 83.4 | F165: 2.5 | G165: 8.34 | H165: 0.83 | I165: 0.2 | J165: 1.11 | K165: 0.02 | L165: 72.9 | M165: 28009172501861 | N165: صندوق 10 أيام 2018
A166: ايمان عبدالحميد عبد اللطيف | B166: 16 | C166: 278 | D166: 95 | E166: 95 | F166: 2.85 | G166: 9.5 | H166: 0.95 | I166: 0.25 | J166: 1.26 | K166: 0.04 | L166: 83 | M166: 28009172501861 | N166: الجهد الغير عادي أكتوبر 2018
A167: ايمان عبدالحميد عبد اللطيف | B167: 15 | C167: 278 | D167: 95 | E167: 95 | F167: 2.85 | G167: 9.5 | H167: 0.95 | I167: 0.25 | J167: 1.26 | K167: 0.04 | L167: 83 | M167: 28009172501861 | N167: احافز إضافي نوفمبر 2018
A168: ايمان عبدالحميد عبد اللطيف | B168: 1 | C168: 278 | D168: 30 | E168: 30 | F168: 0.9 | G168: 3 | H168: 0.3 | J168: 0.4 | L168: 26.3 | M168: 28009172501861 | N168: حافز مخازن يوليو 2018
A169: ايمان عبدالحميد عبد اللطيف | B169: 1 | C169: 278 | D169: 30 | E169: 30 | F169: 0.9 | G169: 3 | H169: 0.3 | J169: 0.4 | L169: 26.3 | M169: 28009172501861 | N169: حافز مخازن اغسطس 2018
A170: ايمان عبدالحميد عبد اللطيف | B170: 1 | C170: 278 | D170: 30 | E170: 30 | F170: 0.9 | G170: 3 | H170: 0.3 | J170: 0.4 | L170: 26.3 | M170: 28009172501861 | N170: حافز مخازن ستمبر 2018
A171: ايمان عبدالحميد عبد اللطيف | B171: 1 | C171: 278 | D171: 30 | E171: 30 | F171: 0.9 | G171: 3 | H171: 0.3 | J171: 0.4 | L171: 26.3 | M171: 28009172501861 | N171: حافز مخازن اكتوبر 2018
A172: ايمان عبدالحميد عبد اللطيف | B172: 1 | C172: 278 | D172: 30 | E172: 30 | F172: 0.9 | G172: 3 | H172: 0.3 | J172: 0.4 | L172: 26.3 | M172: 28009172501861 | N172: حافز مخازن نوفمبر 2018
A173: ايمان عبدالحميد عبد اللطيف | B173: 1 | C173: 278 | D173: 30 | E173: 30 | F173: 0.9 | G173: 3 | H173: 0.3 | J173: 0.4 | L173: 26.3 | M173: 28009172501861 | N173: حافز المخازن ديسمبر 2018
A174: ايمان عبدالحميد عبد اللطيف | B174: 16 | C174: 278 | D174: 191.82 | E174: 191.82 | F174: 5.75 | G174: 19.18 | H174: 1.92 | I174: 0.85 | J174: 2.54 | K174: 0.03 | L174: 167.3 | M174: 28009172501861 | N174: امتحانات تخلفات ستمبر 2018
A175: ايمان عبدالحميد عبد اللطيف | B175: 16 | C175: 278 | D175: 95 | E175: 92.36 | F175: 2.85 | G175: 9.5 | H175: 0.95 | I175: 0.25 | J175: 1.26 | K175: 0.03 | L175: 83 | M175: 28401292500181 | N175: إضافي ديسمبر 2018
A176: ايمان عبدالحميد عبد اللطيف | B176: 15 | C176: 278 | D176: 95 | E176: 95 | F176: 2.85 | G176: 9.5 | H176: 0.95 | I176: 0.3 | J176: 1.26 | K176: 0.04 | L176: 82.95 | M176: 28009172501861 | N176: إضافي أغسطس 2018
A177: ايمان عبدالحميد عبد اللطيف | B177: 14 | C177: 278 | D177: 95 | E177: 95 | F177: 2.85 | G177: 9.5 | H177: 0.95 | I177: 0.3 | J177: 1.26 | K177: 0.04 | L177: 82.95 | M177: 28009172501861 | N177: إضافي سبعة 2018
D178: =SUM(D163:D177) -> 1530.22 | E178: =SUM(E163:E177) -> 1527.58 | F178: 45.9 | G178: 153.02 | H178: 15.3 | I178: 5.5 | J178: 20.3 | K178: 0.29 | L178: 1335.8
A179: ايمان محمد عبد المعطي محمد | B179: 18 | C179: 264 | D179: 300 | E179: 300 | F179: 9 | G179: 30 | H179: 3 | I179: 1.45 | J179: 3.98 | K179: 0.02 | L179: 261.55 | M179: 28401292500181 | N179: المولد النبوي الشريف 2018
A180: ايمان محمد عبد المعطي محمد | B180: 16 | C180: 264 | D180: 300 | E180: 300 | F180: 9 | G180: 30 | H180: 3 | I180: 1.65 | J180: 3.97 | K180: 0.03 | L180: 261.35 | M180: 28401292500181 | N180: عيد الاضحي المبارك 2018
A181: ايمان محمد عبد المعطي محمد | B181: 15 | C181: 264 | D181: 79.2 | E181: 79.2 | F181: 2.38 | G181: 7.92 | H181: 0.79 | I181: 0.2 | J181: 1.05 | K181: 0.04 | L181: 69.2 | M181: 28401292500181 | N181: صندوق 10 أيام 2018
A182: ايمان محمد عبد المعطي محمد | B182: 17 | C182: 264 | D182: 95 | E182: 95 | F182: 2.85 | G182: 9.5 | H182: 0.95 | I182: 0.25 | J182: 1.26 | K182: 0.04 | L182: 83 | M182: 28401292500181 | N182: الجهد الغير عادي أكتوبر 2018
A183: ايمان محمد عبد المعطي محمد | B183: 16 | C183: 264 | D183: 95 | E183: 95 | F183: 2.85 | G183: 9.5 | H183: 0.95 | I183: 0.25 | J183: 1.26 | K183: 0.04 | L183: 83 | M183: 28401292500181 | N183: احافز إضافي نوفمبر 2018
A184: ايمان محمد عبد المعطي محمد | B184: 17 | C184: 264 | D184: 182.16 | E184: 182.16 | F184: 5.46 | G184: 18.22 | H184: 1.82 | I184: 0.8 | J184: 2.41 | K184: 0.01 | L184: 158.9 | M184: 28401292500181 | N184: امتحانات تخلفات ستمبر 2018
A185: ايمان محمد عبد المعطي محمد | B185: 17 | C185: 264 | D185: 95 | E185: 95 | F185: 2.85 | G185: 9.5 | H185: 0.95 | I185: 0.25 | J185: 1.26 | K185: 0.04 | L185: 83 | M185: 28302182500226 | N185: إضافي ديسمبر 2018
A186: ايمان محمد عبد المعطي محمد | B186: 16 | C186: 264 | D186: 95 | E186: 95 | F186: 2.85 | G186: 9.5 | H186: 0.95 | I186: 0.3 | J186: 1.26 | K186: 0.04 | L186: 82.95 | M186: 28401292500181 | N186: إضافي أغسطس 2018
A187: ايمان محمد عبد المعطي محمد | B187: 15 | C187: 264 | D187: 95 | E187: 95 | F187: 2.85 | G187: 9.5 | H187: 0.95 | I187: 0.3 | J187: 1.26 | K187: 0.04 | L187: 82.95 | M187: 28401292500181 | N187: إضافي سبعة 2018
D188: =SUM(D179:D187) -> 1336.36 | E188: =SUM(E179:E187) -> 1336.36 | F188: 40.09 | G188: 133.64 | H188: 13.36 | I188: 5.45 | J188: 17.71 | K188: 0.3 | L188: 1165.9
A189: بسمة عبد العزيز ابو العلا | B189: 19 | C189: 274 | D189: 300 | E189: 300 | F189: 9 | G189: 30 | H189: 3 | I189: 1.45 | J189: 3.98 | K189: 0.02 | L189: 261.55 | M189: 28302182500226 | N189: المولد النبوي الشريف 2018
A190: بسمة عبد العزيز ابو العلا | B190: 17 | C190: 274 | D190: 300 | E190: 300 | F190: 9 | G190: 30 | H190: 3 | I190: 1.65 | L190: 265.35 | M190: 28302182500226 | N190: عيد الاضحي المبارك 2018
A191: بسمة عبد العزيز ابو العلا | B191: 16 | C191: 274 | D191: 82.2 | E191: 82.2 | F191: 2.47 | G191: 8.22 | H191: 0.82 | I191: 0.2 | J191: 1.09 | K191: 0.02 | L191: 71.85 | M191: 28302182500226 | N191: صندوق 10 أيام 2018
A192: بسمة عبد العزيز ابو العلا | B192: 18 | C192: 274 | D192: 95 | E192: 95 | F192: 2.85 | G192: 9.5 | H192: 0.95 | I192: 0.25 | J192: 1.26 | K192: 0.04 | L192: 83 | M192: 28302182500226 | N192: الجهد الغير عادي أكتوبر 2018
A193: بسمة عبد العزيز ابو العلا | B193: 17 | C193: 274 | D193: 95 | E193: 95 | F193: 2.85 | G193: 9.5 | H193: 0.95 | I193: 0.25 | J193: 1.26 | K193: 0.04 | L193: 83 | M193: 28302182500226 | N193: احافز إضافي نوفمبر 2018
A194: بسمة عبد العزيز ابو العلا | B194: 18 | C194: 274 | D194: 154.97 | E194: 154.97 | F194: 4.65 | G194: 15.5 | H194: 1.55 | I194: 0.65 | J194: 2.05 | K194: 0.02 | L194: 135.2 | M194: 28302182500226 | N194: امتحانات تخلفات ستمبر 2018
A195: بسمة عبد العزيز ابو العلا | B195: 18 | C195: 274 | D195: 95 | E195: 95 | F195: 2.85 | G195: 9.5 | H195: 0.95 | I195: 0.25 | J195: 1.26 | K195: 0.04 | L195: 83 | M195: 28009152500311 | N195: إضافي ديسمبر 2018
A196: بسمة عبد العزيز ابو العلا | B196: 17 | C196: 274 | D196: 95 | E196: 95 | F196: 2.85 | G196: 9.5 | H196: 0.95 | I196: 0.3 | L196: 84.25 | M196: 28302182500226 | N196: إضافي أغسطس 2018
A197: بسمة عبد العزيز ابو العلا | B197: 16 | C197: 274 | D197: 95 | E197: 95 | F197: 2.85 | G197: 9.5 | H197: 0.95 | I197: 0.3 | J197: 1.26 | K197: 0.04 | L197: 82.95 | M197: 28302182500226 | N197: إضافي سبعة 2018
D198: =SUM(D189:D197) -> 1312.17 | E198: =SUM(E189:E197) -> 1312.17 | F198: 39.37 | G198: 131.22 | H198: 13.12 | I198: 5.3 | J198: 12.16 | K198: 0.22 | L198: 1150.15
A199: بيتر عاطف كمال متري | B199: 20 | C199: 270 | D199: 300 | E199: 300 | F199: 9 | G199: 30 | H199: 3 | I199: 1.45 | J199: 3.98 | K199: 0.02 | L199: 261.55 | M199: 28009152500311 | N199: المولد النبوي الشريف 2018
A200: بيتر عاطف كمال متري | B200: 18 | C200: 270 | D200: 300 | E200: 300 | F200: 9 | G200: 30 | H200: 3 | I200: 1.65 | J200: 3.98 | K200: 0.02 | L200: 261.35 | M200: 28009152500311 | N200: عيد الاضحي المبارك 2018
A201: بيتر عاطف كمال متري | B201: 17 | C201: 270 | D201: 81 | E201: 81 | F201: 2.43 | G201: 8.1 | H201: 0.81 | I201: 0.2 | J201: 1.07 | K201: 0.02 | L201: 70.8 | M201: 28009152500311 | N201: صندوق 10 أيام 2018
... 720 more rows

Sheet شيت اساسي يرحل الية بيانات (hidden)
A1: التسوية الضريبية عن عام 02018م | E1: يأخذ بياناتة من شيت البيانات بكتابة الرقم القومي في مكان السهم
A2: الاسم / | B2: ادخل الرقم القومي | E2: يديني جميع بيانات الشيت | G2: صفحة
A3: اكتب هنا الرقم القومي | D3: 0 | E3: الدرجة | F3: =IF(C10=9,"كبيربدرجة مدير عام",IF(C10=1,"الاولى",IF(C10=2,"الثانية",IF(C10=3,"الثالثة",IF(C10=4,"الرابعة",IF(C10=5,"الخامسة",IF(C10=6,"السادسة",IF(C10=10,"مدير عام تنفيذى","برجاء إدخال الدرجة المالية")))))))) -> برجاء إدخال الدرجة المالية | G3: 0
A4: بيانات اساسية | E4: كلى | F4: بيــــــــــــــــــــان
A5: النصف الاول | B5: اجمالي وظيفي | C5: 0 | D5: 6 | E5: =C5*D5 -> 0 | F5: اجمالي الاجر الوظيفي 1/1 | G5: 1
B6: اجمالي مكمل | C6: 0 | D6: =D5 -> 6 | E6: 0 | F6: الاجر المكمل 1/1 | G6: 2
A7: النصف الثاني | B7: اجمالي وظيفي | C7: 0 | D7: 6 | E7: 0 | F7: اجمالي الاجر الوظيفي 7/1 | G7: 3
B8: اجمالي مكمل | C8: 0 | D8: =D7 -> 6 | E8: 0 | F8: الاجر المكمل 7/1 | G8: 4
A9: بدلات اخرى | C9: 0 | D9: =D7+D5 -> 12 | E9: =C9*D9*-1 -> 0 | F9: بدلات اخرى | G9: 5
A10: كبير 9 مدير عام 10 غير ذلك 0 | C10: 0 | E10: =IF(C10=9,C13*10%*D9,IF(C10=10,C13*0.3*D9,0)) -> 0 | F10: مناصب قياديه | G10: 6
A11: جملة مكافأت | C11: 0 | E11: =C11+C12 -> 0 | F11: جملة المكافآت + قسط التكافل | G11: 9
A12: قسط التكافل | C12: 0 | E12: =SUM(E5:E11) -> 0 | F12: اجمالى الايراد | G12: 10
A13: اساسي 2015/6/30 | C13: 0 | E13: 0 | F13: تسويات خصم من الايراد او اضافة اليه
A14: اساسى تأمينات 1/1 | C14: =C13*1.295 -> 0 | D14: =(C14*D5*0.13) -> 0 | E14: =-(7000*(D5+D7)/12) -> -7000 | F14: الاعفاء الشخصى (م 13 بند 1 )
A15: اساسى تأمينات 7/1 | C15: =C14*1.09 -> 0 | D15: =(C15*D7*0.13) -> 0
A16: معاشات متغير | C16: 0 | D16: =(C16*0.1) -> 0
A17: اقساط معاشات خاصة | C17: 0 | D17: =D9*C17 -> 0 | E17: =SUM(D14:D17)*-1 -> 0 | F17: جملة المعاشات (م 13 بند 2 )
A18: الدمغة العادية | E18: =SUM(E12:E17) -> -7000 | F18: صافى الايراد المؤقت الـ 15% | G18: =E18*0.15 -> -1050
A19: دمغة المرتب الشهري | B19: 1/1 | C19: 0 | D19: =C19*D5 -> 0
B20: 7/1 | C20: 0 | D20: =C20*D7 -> 0
A21: دمغة مكافآت | C21: 0 | D21: =C21 -> 0 | E21: =SUM(D19:D21) -> 0 | F21: جملة الدمغات
A22: قسط تأمين على الحياه | C22: 0 | F22: يخصم الآتى :ـ
A23: جزء شهر | B23: الضريبة المخصومة | F23: صناديق تأمين خاصة ( م 13 بند 3 ) | G23: =C12 -> 0
B24: 1/1 | C24: 0 | D24: =(C24*D5)-(C24*A24) -> 0 | F24: تأمين على الحياه ( م 13 بند 4 ) | G24: =C22*D9 -> 0
B25: 7/1 | C25: 0 | D25: =(C25*D7)-(C25*A25) -> 0 | F25: تأمين صحي | G25: =(C14*D5*0.01)+(C15*D7*0.01)+(C16*0.01) -> 0
A26: قرق ضريبة جزء شهر | D26: =C26 -> 0 | E26: =IF(G26<G18,G26,IF(G18<G26,G18)) -> -1050 | F26: جملة بنود التأمين السابقة | G26: =SUM(G23:G25) -> 0
A27: ضريبة المكافآت | C27: 0 | D27: =C27*1 -> 0
A28: جملة ضريبة مخصومة | D28: =SUM(D24:D27) -> 0 | E28: =FLOOR(E18-E21-E26-C29,10) -> -5950 | F28: صافى الايراد الخاضع للضريبة
B29: شريحة 1 | D29: 0 | E29: 8000 | F29: الشريحة الاولى المعفاه ( م 8 من القانون )
B30: شريحة 2 | D30: =E30*0.1 -> 0 | E30: =IF(E28<8000,0,IF(E28<=30000,E28-8000,IF(E28>30000,22000,))) -> 0 | F30: الشريحة االثانية اكثر من 8000 حتى مبلغ 30000.ج بنسبة 10%
B31: شريحة 3 | D31: =E31*0.15 -> 0 | E31: =IF(E28<=30000,0,IF(E28<45000,E28-30000,IF(E28>=45000,15000,))) -> 0 | F31: الشريحة الثالثة اكثر من 30000 حتى مبلغ 45000.ج بنسبة 15%
B32: شريحة 3 | D32: =E32*0.2 -> 0 | E32: =IF(E28>45000,E28-45000,IF(E28<45000,0)) -> 0 | F32: الشريحة الرابعة اكثر من 45000 حتى مبلغ 200000ج بنسبة 20%
A33: جملة ضريبة مستحقة | D33: =SUM(D30:D32) -> 0 | E33: 0
A34: الخصم الضريبي | C34: =IF(E28<30000,82.5%,IF(E28<45000,42.5%,IF(E28>45000,6.25%,0))) -> 0.825 | D34: =D33*C34 -> 0
A35: صافى التسوية | C35: =IF(D35<0,"عليه",IF(D35>0,"له",)) -> 0 | D35: =D28-(D33-D34) -> 0 | F35: مراجع مدير
A36: المختص

Sheet شيت البيانات
A1: شيت البيانات | D1: يأخذ بياناتة من شيت تفصيلي يناير 2018 وتفصيلي يوليو 2018 ومن شيت اجمالي المكافاة وشيت البيانات يعطي بياناتة الي ورقة التسوية الضريبية
A2: ذكر وتوضيح رقم الأعمدة المطلوب نقلها من صفحة تفصيلي مرتب يوليو 2018 | E2: من يناير | F2: من يناير | G2: من يوليو | H2: من يوليو | S2: من أي شيت
A3: ذكر وتوضيح رقم الأعمدة المطلوب نقلها من صفحة تفصيلي المرتب يناير 2018 | E3: ='تفصيلي المرتب يناير 2018'!N2 -> 788.6 | G3: =الجدول9[[#This Row],[إجمالى الأجر الوظيفى]] -> 967.29 | S3: ='تفصيلي المرتب يناير 2018'!E2 -> 259
A4: كود الموظف | B4: رقم الموظف | C4: الاسم | D4: الؤقم القومي | E4: إجمالى الأجر الوظيفى في 1/1 | F4: اجمالي الأجر المكمل في 1/1 | G4: إجمالى الأجر الوظيفى في 7/1 | H4: اجمالي الأجر المكمل في 7/1 | I4: بدل إقامة - غير خاضع للضريبة | J4: بدل نقدي | K4: اجمالي بدلات غير خاضعة | L4: بدل علميين | M4: بدل عدوى | N4: بدل طبيعة عمل | O4: بدل تفرغ زراعيين | P4: اجمالي البدلات | Q4: اجمالي المكافآت | R4: قسط التكافل | S4: أساسى المرتب فى 30-6 | T4: متوسط المتغير | U4: اعتبارى | V4: اعارة | W4: جملة اقساط معاشات | X4: الدمغة العادية 1/1 | Y4: دمغة 1/7 | Z4: دمغة المكافآت1/1 | AA4: الضريبة 1/1 | AB4: ضريبة 1/7 | AC4: ضريبة مكافآت 7/1 | AD4: الدرجة | AE4: قسط تأمين على الحياه | AF4: الدرجة الحالية | AG4: File Name
A5: 50-1 | B5: 1 | C5: ابو بكر جلال علي عبد الحافظ | D5: 28310092500254 | I5: 14.4 | K5: =I5+J5 -> 14.4 | R5: يكتب يدوي | S5: =S3 -> 259 | X5: ='تفصيلي المرتب يناير 2018'!BE2 -> 5.2 | Y5: ='تفصيلي مرتب يوليو 2018'!BC3 -> 6.2 | AA5: ='تفصيلي المرتب يناير 2018'!BF2 -> 0 | AB5: ='تفصيلي مرتب يوليو 2018'!BD3 -> 0 | AC5: من اجمالي | AD5: تكتب يدوي | AE5: مفيش | AF5: يدوي | AG5: مفيش
A6: 50-2 | B6: 2 | C6: اسامة مصطفى محمد عبد الرحمن | D6: 28301132500091 | AC6: المكافات
A7: 50-3 | B7: 3 | C7: اسامه عبد النعيم عاصم محمد | D7: 27511172502659
A8: 50-4 | B8: 4 | C8: اسراء أسامة محمد طلبه | D8: 28606128800361
A9: 50-5 | B9: 5 | C9: اسماء ابو زيد فؤاد ابو زيد | D9: 28312138800447
A10: 50-6 | B10: 6 | C10: اسماء اسلام توفيق عبد المتجلى | D10: 28611162500168
A11: 50-7 | B11: 7 | C11: الشيماء نور الدين مطاوع عبد الحافظ | D11: 28712162500142
A12: 50-8 | B12: 8 | C12: امل محمد عبد المجيد تمام | D12: 28510032502061
A13: 50-9 | B13: 9 | C13: اميرة إسماعيل تهامى إسماعيل | D13: 28806242500229
A14: 50-10 | B14: 10 | C14: اميرة محمد عبد المعطى محمد | D14: 28504252500204
A15: 50-11 | B15: 11 | C15: اميره بدر توفيق حسن | D15: 28604152500066
A16: 50-12 | B16: 12 | C16: اميره محمد حنفي يوسف | D16: 28109162500128
A17: 50-13 | B17: 13 | C17: انعام احمد ابراهيم مهران | D17: 27108062500783
A18: 50-14 | B18: 14 | C18: اوميمه جمال حلمى حسن | D18: 27412022500064
A19: 50-15 | B19: 15 | C19: ايفيلين ربيل بطرس اسكاروس | D19: 27811202502229
A20: 50-16 | B20: 16 | C20: ايمان عبدالحميد عبد اللطيف | D20: 28009172501861
A21: 50-17 | B21: 17 | C21: ايمان محمد عبد المعطي محمد | D21: 28401292500181
A22: 50-18 | B22: 18 | C22: بسمة عبد العزيز ابو العلا | D22: 28302182500226
A23: 50-19 | B23: 19 | C23: بيتر عاطف كمال متري | D23: 28009152500311
A24: 50-20 | B24: 20 | C24: جرجس فيليب عزيز نخله | D24: 28511172500374
A25: 50-21 | B25: 21 | C25: حسام جمال الدين محمد محمود | D25: 28710202500351
A26: 50-22 | B26: 22 | C26: حنان فاروق محمد طلبه | D26: 28102032500229
A27: 50-23 | B27: 23 | C27: حنان محمود محمد أحمد | D27: 29208022500243
A28: 50-24 | B28: 24 | C28: خالد فتحي عبد العزيز اسماعيل | D28: 28606212500276
A29: 50-25 | B29: 25 | C29: داليا محي عبد العليم عبد الحافظ | D29: 28211082500321
A30: 50-26 | B30: 26 | C30: دعاء احمد جمال عبدالفتاح حسن | D30: 27808192500183
A31: 50-27 | B31: 27 | C31: دعاء محمد عباس عامر | D31: 28110182500181
A32: 50-28 | B32: 28 | C32: دينا حسين اسماعيل احمد | D32: 28209102500301
A33: 50-29 | B33: 29 | C33: دينا مصطفى سيد محمد البهنساوى | D33: 28412312500207
A34: 50-30 | B34: 30 | C34: رانيا محمود نشأت عباس محمد | D34: 28110092500107
A35: 50-31 | B35: 31 | C35: رشا رفعت عبد العزيز عبد الرحيم | D35: 28303132500264
A36: 50-32 | B36: 32 | C36: رشا طلعت صادق مقار | D36: 28309012505066
A37: 50-33 | B37: 33 | C37: رشا محمد محمد احمد مصطفى | D37: 28208012502643
A38: 50-34 | B38: 34 | C38: زينب شعبان عجمى يوسف | D38: 26804232500107
A39: 50-35 | B39: 35 | C39: شيماء حسن زكى حسين | D39: 28008042500107
A40: 50-36 | B40: 36 | C40: شيماء سيد علي حسن | D40: 28308012503041
A41: 50-37 | B41: 37 | C41: شيماء فواز عبد الرحمن مهران | D41: 28402062500227
A42: 50-38 | B42: 38 | C42: شيماء محسن محمد فرغلى | D42: 28311190104789
A43: 50-39 | B43: 39 | C43: تهامي أنور تهامى محمد | D43: 29005272502634
A44: 50-40 | B44: 40 | C44: عبد الحميد حسنين محمد حسنين | D44: 27706242500131
A45: 50-41 | B45: 41 | C45: عبير فاروق مصطفي إسماعيل | D45: 28410222500183
A46: 50-42 | B46: 42 | C46: عبير نصير كامل محمد | D46: 28607031900244
A47: 50-43 | B47: 43 | C47: عثمان محمد عبده محمد | D47: 26712062501837
A48: 50-44 | B48: 44 | C48: عزة سيد تمام مصطفى | D48: 28707062500061
A49: 50-45 | B49: 45 | C49: عزت سيد حسن محمد | D49: 26106032500111
A50: 50-46 | B50: 46 | C50: عزه عبد الحميد زكى محمد | D50: 27203062500221
A51: 50-47 | B51: 47 | C51: علاء رمضان توفيق على | D51: 28505012500157
A52: 50-48 | B52: 48 | C52: عمر اسماعيل عمر اسماعيل | D52: 28206262500473
A53: 50-49 | B53: 49 | C53: عمر عبد الرحمن دوينى عبدالرحمن | D53: 28307182502212
A54: 50-50 | B54: 50 | C54: عمر محى عبد العليم عبد الحافظ | D54: 28507012500494
A55: 50-51 | B55: 51 | C55: عمرو حامد حسن محمد | D55: 28112020101791
A56: 50-52 | B56: 52 | C56: عمرو محمد محمد عبد المجيد | D56: 27912222500339
A57: 50-53 | B57: 53 | C57: غادة أحمد سيد عبد العال | D57: 27909242500041
A58: 50-54 | B58: 54 | C58: فاطمة أحمد فواز خلف الله عثمان علي | D58: 28004262500242
A59: 50-55 | B59: 55 | C59: فاطمه حسانين احمد محمد | D59: 28603178800223
A60: 50-56 | B60: 56 | C60: ليلى محمد فرحان أحمد | D60: 28612082503685
A61: 50-57 | B61: 57 | C61: محمد أحمد رضى محمود محمد عبد المنعم | D61: 28508292500032
A62: 50-58 | B62: 58 | C62: محمد احمد عبد العال عبد السلام | D62: 28109172500291
A63: 50-59 | B63: 59 | C63: محمد حسنى نفادى أحمد | D63: 28801012517392
A64: 50-60 | B64: 60 | C64: محمد فتحي محمود فرج | D64: 28301222500171
A65: 50-61 | B65: 61 | C65: محمد كمال الدين عبد العال مرسى | D65: 28309102500411
A66: 50-62 | B66: 62 | C66: محمد محمود محمد قاسم | D66: 28409242500254
A67: 50-63 | B67: 63 | C67: محمود سيد توفيق سيد | D67: 28604012504878
A68: 50-64 | B68: 64 | C68: محمود محمد عبد العال احمد | D68: 28602042500319
A69: 50-65 | B69: 65 | C69: مرفت فؤاد حنين أرمانيوس | D69: 27804112500107
A70: 50-66 | B70: 66 | C70: مروة مجدى عبد الحافظ سيد | D70: 28607162500063
A71: 50-67 | B71: 67 | C71: مروة محمد على محمد | D71: 28501142500382
A72: 50-68 | B72: 68 | C72: مصطفى صلاح الدين سيد عبد الرحمن | D72: 28201032504214
A73: 50-69 | B73: 69 | C73: مصطفى عيد سيد محمد | D73: 28403242500051
A74: 50-70 | B74: 70 | C74: منى قاسم أحمد على | D74: 27807022501821
A75: 50-71 | B75: 71 | C75: مها مراد احمد شوكت | D75: 28409202500227
A76: 50-72 | B76: 72 | C76: ناهد عبد الموجود محمود | D76: 28003102503168
A77: 50-73 | B77: 73 | C77: نجلاء احمد دياب سلامة | D77: 27806222500083
A78: 50-74 | B78: 74 | C78: نجوان رضا محمد عمر | D78: 27512112500165
A79: 50-75 | B79: 75 | C79: نجوى إبراهيم عبد العال مهران | D79: 28108052500126
A80: 50-76 | B80: 76 | C80: نجوى عزت عبد المجيد القرنى | D80: 26701012500404
A81: 50-77 | B81: 77 | C81: نسمة على محمد سيد | D81: 28703012500285
A82: 50-78 | B82: 78 | C82: نهال محمد عصمت محمد بيومى | D82: 28409082500082
A83: 50-79 | B83: 79 | C83: نهى عثمان عبدالحافظ ابراهيم | D83: 28310112500426
A84: 50-80 | B84: 80 | C84: نهى فتحى محمد الصغير | D84: 28712152500268
A85: 50-81 | B85: 81 | C85: نهى محمد عفيفى محمود | D85: 28708232500181
A86: 50-82 | B86: 82 | C86: نهى محمد نبيل كامل محمود | D86: 28309202500125
A87: 50-83 | B87: 83 | C87: نيفين عبد اللاه محمد عبد الرحيم | D87: 28204210100288
A88: 50-84 | B88: 84 | C88: هاله علي الدين محمود سيد | D88: 28707172500121
A89: 50-85 | B89: 85 | C89: وسام محمد احمد عيسى | D89: 28611122500122
A90: 50-86 | B90: 86 | C90: ولاء عبد الناصر حسين أحمد | D90: 28703202500168
A91: 50-87 | B91: 87 | C91: ياسمين محمد رفعت محمد | D91: 28607202503745
